Workbook

Sheet ＴＯＰ
B4: 入力・移動 各シートの | E4: に必要事項を入力します。
B5: 印刷 各シートはＡ４サイズの用紙に出力されます。
B7: 入力・移動 | D7: 印刷 | F7: 説明
F9: 会社名、中小企業者等の別、適用事業年度などを入力します
F11: 従業員の名前などの情報を入力します
F13: 基準雇用者給与等支給額、比較雇用者給与等支給額、適用年度の雇用者給与等支給額を入力します
F15: 入力した基礎数字を基に、別表６（２３）を作成します。「当期の所得に対する法人税の額」を追加入力する必要があります
F17: 上記別表６（２３）を、平成30年４月以後終了事業年度分の別表６（２３）形式にしたものです。
F19: 上記別表６（２３）を、平成30年４月以後終了事業年度分の別表６（２３）付表１形式にしたものです。
F22: 提供：小林敬幸税理士事務所
F23: Ver. 1.0
B24: ★当事務所の税理士の著書
C26: 帳簿初心者な方向けに、パソコン会計で徹底的に簡単に青色申告を行うためのTipsを詰め込んだ、自信の一作です！
C29: ★参考 このファイルの保護パスワードは、こちらの本の背面の２つめのバーコードの数字（1922で始まる１３ケタの数字（半角））になっています。マクロを有効にすると、保護を解除しなくともすべての機能は使えますが、保護を解除して改造等挑戦される方は是非本書もお求めください。
C32: 個人事業を会社にした場合の税金や社会保険料の変化が、誰でも簡単にシミュレーションできるソフトが付録についた、法人成りのノウハウ満載のマニュアル本です！

Sheet 基本情報
B7: 会社名 | C7: 株式会社今野デザイン
B9: 中小企業に該当するか | C9: 該当 | D9: =IF(C9="該当",20,10) -> 20 | L9: 中小法人 | M9: 大法人
D10: 期首日 | E10: 2015-04-01 | F10: 2016-04-01 | G10: 2017-04-01 | H10: 2018-04-01 | I10: 月数 | J10: 前事業年度月数 | L10: =IF(D11<E10,0.02,0.03) -> 0.03 | M10: =IF(D11<E10,0.02,IF(D11<F10,0.03,IF(D11<G10,0.04,0.05))) -> 0.05
B11: 計算事業年度の期末日 | C11: 2018-09-30 | D11: =EOMONTH(C11,-12)+1 -> 2017-10-01 | E11: =IF(C9="該当",L10,M10) -> 0.03 | G11: =IF(C20>=D11,"-",EOMONTH(D11,-13)+1) -> 2016-10-01 | H11: =IF(C20>=D11,"-",EOMONTH(G11,11)) -> 2017-09-30 | I11: =MIN(DATEDIF(D11,C11,"M")+1,DATEDIF(C20,C11,"M")+1) -> 12 | J11: =IF(C20>=D11,"-",DATEDIF(G11,H11,"M")+1) -> 12
B12: 計算事業年度の期首日 | C12: =D11 -> 2017-10-01
C13: =IF(C12>=42826,"平成２９年４月以降開始","平成２９年３月以前開始") -> 平成２９年４月以降開始 | D13: =IF(C12>=42826,1,0) -> 1
G14: 前年度期首日 | H14: 前年度期末日
B15: 法人の設立日 | C15: 平成25年３月31日以前 | D15: =IF(C15="平成25年３月31日以前",1,0) -> 1
B17: 基準年度 | C17: =IF(D15=1,G17,"-") -> 2012-10-01 | D17: ="2013/"&MONTH(D11)&"/"&DAY(D11) -> 2013/10/1 | E17: =VALUE(D17) -> 2013-10-01 | F17: 2013-04-01 | G17: =IF(E17>=F17,EOMONTH(E17,-13)+1,E17) -> 2012-10-01 | I17: 月数
C18: =IF(D15=1,EOMONTH(C17,11),"-") -> 2013-09-30 | I18: =IF(D15=1,DATEDIF(C17,C18,"M")+1,"-") -> 12
F19: 期末日
B20: 基準年度がない 場合の法人設立日 | D20: =YEAR(C20)&"/"&MONTH(C11)&"/"&DAY(C11) -> 1900/9/30 | E20: =VALUE(D20) -> 1900-09-30 | F20: =IF(C20<E20,E20,EOMONTH(E20,12)) -> 1900-09-30 | G20: =DATEDIF(C20,F20,"M")+1 -> 9
B21: 設立年度の 雇用者給与等支給額 | D21: =ROUNDDOWN(C21*0.7,0) -> 0
B24: 経過年度の摘要の有無 | C24: 有
B25: 経過年度

Sheet 従業員情報
B5: No. | C5: 従業員名 | D5: 役員・使用人兼務役員 特殊関係者 | E5: 国内雇用者 | F5: 雇用保険 一般被保険者 | G5: 一般被保険者 となった月 | H5: 一般被保険者 でなくなった月 | I5: 一般被保険者で なくなった理由 | J5: なった月 判定 | K5: 一般被保険者 となった月 | L5: 一般被保険者 でなくなった月 | M5: 継続雇用者 | N5: なくなった月 判定
B6: 1 | C6: 今野 友夫 | D6: 該当 | J6: =IF(ISERROR(VLOOKUP(G6,計算基礎シート!I$5:J$28,2,FALSE)),2,VLOOKUP(G6,計算基礎シート!I$5:J$28,2,FALSE)) -> 2 | K6: =IF(ISERROR(VLOOKUP(G6,計算基礎シート!$C$5:$D$28,2,FALSE)),"",VLOOKUP(G6,計算基礎シート!$C$5:$D$28,2,FALSE)) ->  | L6: =IF(ISERROR(VLOOKUP(H6,計算基礎シート!$F$3:$G$28,2,FALSE)),"",VLOOKUP(H6,計算基礎シート!$F$3:$G$28,2,FALSE)) ->  | M6: =IF(AND(J6=1,N6=1),"該当","") ->  | N6: =IF(ISERROR(VLOOKUP(L6,計算基礎シート!G$5:H$28,2,FALSE)),2,VLOOKUP(L6,計算基礎シート!G$5:H$28,2,FALSE)) -> 2
B7: 2 | C7: 今野 朝子 | D7: 該当 | J7: =IF(ISERROR(VLOOKUP(G7,計算基礎シート!I$5:J$28,2,FALSE)),2,VLOOKUP(G7,計算基礎シート!I$5:J$28,2,FALSE)) -> 2 | K7: =IF(ISERROR(VLOOKUP(G7,計算基礎シート!$C$5:$D$28,2,FALSE)),"",VLOOKUP(G7,計算基礎シート!$C$5:$D$28,2,FALSE)) ->  | L7: =IF(ISERROR(VLOOKUP(H7,計算基礎シート!$F$3:$G$28,2,FALSE)),"",VLOOKUP(H7,計算基礎シート!$F$3:$G$28,2,FALSE)) ->  | M7: =IF(AND(J7=1,N7=1),"該当","") ->  | N7: =IF(ISERROR(VLOOKUP(L7,計算基礎シート!G$5:H$28,2,FALSE)),2,VLOOKUP(L7,計算基礎シート!G$5:H$28,2,FALSE)) -> 2
B8: 3 | C8: 今野 祥子 | D8: 該当 | J8: =IF(ISERROR(VLOOKUP(G8,計算基礎シート!I$5:J$28,2,FALSE)),2,VLOOKUP(G8,計算基礎シート!I$5:J$28,2,FALSE)) -> 2 | K8: =IF(ISERROR(VLOOKUP(G8,計算基礎シート!$C$5:$D$28,2,FALSE)),"",VLOOKUP(G8,計算基礎シート!$C$5:$D$28,2,FALSE)) ->  | L8: =IF(ISERROR(VLOOKUP(H8,計算基礎シート!$F$3:$G$28,2,FALSE)),"",VLOOKUP(H8,計算基礎シート!$F$3:$G$28,2,FALSE)) ->  | N8: =IF(ISERROR(VLOOKUP(L8,計算基礎シート!G$5:H$28,2,FALSE)),2,VLOOKUP(L8,計算基礎シート!G$5:H$28,2,FALSE)) -> 2
B9: 4 | C9: 川西 めぐみ | D9: 非該当 | E9: 該当 | F9: 該当 | G9: 2016年10月以前 | H9: 在職中 | J9: =IF(ISERROR(VLOOKUP(G9,計算基礎シート!I$5:J$28,2,FALSE)),2,VLOOKUP(G9,計算基礎シート!I$5:J$28,2,FALSE)) -> 1 | K9: =IF(ISERROR(VLOOKUP(G9,計算基礎シート!$C$5:$D$28,2,FALSE)),"",VLOOKUP(G9,計算基礎シート!$C$5:$D$28,2,FALSE)) -> 2016-10-01 | L9: =IF(ISERROR(VLOOKUP(H9,計算基礎シート!$F$3:$G$28,2,FALSE)),"",VLOOKUP(H9,計算基礎シート!$F$3:$G$28,2,FALSE)) -> 2018-09-30 | M9: 該当 | N9: =IF(ISERROR(VLOOKUP(L9,計算基礎シート!G$5:H$28,2,FALSE)),2,VLOOKUP(L9,計算基礎シート!G$5:H$28,2,FALSE)) -> 1
B10: 5 | C10: 鳥居 雅之 | D10: 非該当 | E10: 該当 | F10: 非該当 | J10: =IF(ISERROR(VLOOKUP(G10,計算基礎シート!I$5:J$28,2,FALSE)),2,VLOOKUP(G10,計算基礎シート!I$5:J$28,2,FALSE)) -> 2 | K10: =IF(ISERROR(VLOOKUP(G10,計算基礎シート!$C$5:$D$28,2,FALSE)),"",VLOOKUP(G10,計算基礎シート!$C$5:$D$28,2,FALSE)) ->  | L10: =IF(ISERROR(VLOOKUP(H10,計算基礎シート!$F$3:$G$28,2,FALSE)),"",VLOOKUP(H10,計算基礎シート!$F$3:$G$28,2,FALSE)) ->  | N10: =IF(ISERROR(VLOOKUP(L10,計算基礎シート!G$5:H$28,2,FALSE)),2,VLOOKUP(L10,計算基礎シート!G$5:H$28,2,FALSE)) -> 2
B11: 6 | C11: 絹延橋 みつ子 | D11: 非該当 | E11: 該当 | F11: 該当 | G11: 2016年10月以前 | H11: 2018年7月 | I11: 退職 | J11: =IF(ISERROR(VLOOKUP(G11,計算基礎シート!I$5:J$28,2,FALSE)),2,VLOOKUP(G11,計算基礎シート!I$5:J$28,2,FALSE)) -> 1 | K11: =IF(ISERROR(VLOOKUP(G11,計算基礎シート!$C$5:$D$28,2,FALSE)),"",VLOOKUP(G11,計算基礎シート!$C$5:$D$28,2,FALSE)) -> 2016-10-01 | L11: =IF(ISERROR(VLOOKUP(H11,計算基礎シート!$F$3:$G$28,2,FALSE)),"",VLOOKUP(H11,計算基礎シート!$F$3:$G$28,2,FALSE)) -> 2018-07-31 | M11: 該当 | N11: =IF(ISERROR(VLOOKUP(L11,計算基礎シート!G$5:H$28,2,FALSE)),2,VLOOKUP(L11,計算基礎シート!G$5:H$28,2,FALSE)) -> 1
B12: 7 | C12: 笹部 菜穂美 | D12: 非該当 | E12: 該当 | F12: 該当 | G12: 2018年4月 | H12: 在職中 | J12: =IF(ISERROR(VLOOKUP(G12,計算基礎シート!I$5:J$28,2,FALSE)),2,VLOOKUP(G12,計算基礎シート!I$5:J$28,2,FALSE)) -> 2 | K12: =IF(ISERROR(VLOOKUP(G12,計算基礎シート!$C$5:$D$28,2,FALSE)),"",VLOOKUP(G12,計算基礎シート!$C$5:$D$28,2,FALSE)) -> 2018-04-30 | L12: =IF(ISERROR(VLOOKUP(H12,計算基礎シート!$F$3:$G$28,2,FALSE)),"",VLOOKUP(H12,計算基礎シート!$F$3:$G$28,2,FALSE)) -> 2018-09-30 | N12: =IF(ISERROR(VLOOKUP(L12,計算基礎シート!G$5:H$28,2,FALSE)),2,VLOOKUP(L12,計算基礎シート!G$5:H$28,2,FALSE)) -> 1
B13: 8 | C13: 山下 典子 | D13: 非該当 | E13: 該当 | F13: 該当 | G13: 2016年11月 | H13: 在職中 | J13: =IF(ISERROR(VLOOKUP(G13,計算基礎シート!I$5:J$28,2,FALSE)),2,VLOOKUP(G13,計算基礎シート!I$5:J$28,2,FALSE)) -> 1 | K13: =IF(ISERROR(VLOOKUP(G13,計算基礎シート!$C$5:$D$28,2,FALSE)),"",VLOOKUP(G13,計算基礎シート!$C$5:$D$28,2,FALSE)) -> 2016-11-30 | L13: =IF(ISERROR(VLOOKUP(H13,計算基礎シート!$F$3:$G$28,2,FALSE)),"",VLOOKUP(H13,計算基礎シート!$F$3:$G$28,2,FALSE)) -> 2018-09-30 | M13: 該当 | N13: =IF(ISERROR(VLOOKUP(L13,計算基礎シート!G$5:H$28,2,FALSE)),2,VLOOKUP(L13,計算基礎シート!G$5:H$28,2,FALSE)) -> 1
B14: 9 | C14: 畦野 保則 | D14: 非該当 | E14: 該当 | F14: 該当 | G14: 2016年10月以前 | H14: 2018年5月 | I14: 継続雇用制度に移行 | J14: =IF(ISERROR(VLOOKUP(G14,計算基礎シート!I$5:J$28,2,FALSE)),2,VLOOKUP(G14,計算基礎シート!I$5:J$28,2,FALSE)) -> 1 | K14: =IF(ISERROR(VLOOKUP(G14,計算基礎シート!$C$5:$D$28,2,FALSE)),"",VLOOKUP(G14,計算基礎シート!$C$5:$D$28,2,FALSE)) -> 2016-10-01 | L14: =IF(ISERROR(VLOOKUP(H14,計算基礎シート!$F$3:$G$28,2,FALSE)),"",VLOOKUP(H14,計算基礎シート!$F$3:$G$28,2,FALSE)) -> 2018-05-31 | M14: 該当 | N14: =IF(ISERROR(VLOOKUP(L14,計算基礎シート!G$5:H$28,2,FALSE)),2,VLOOKUP(L14,計算基礎シート!G$5:H$28,2,FALSE)) -> 1
B15: 10 | C15: 滝山 隆一 | D15: 非該当 | E15: 該当 | F15: 該当 | G15: 2016年10月以前 | H15: 2017年7月 | I15: 継続雇用制度に移行 | J15: =IF(ISERROR(VLOOKUP(G15,計算基礎シート!I$5:J$28,2,FALSE)),2,VLOOKUP(G15,計算基礎シート!I$5:J$28,2,FALSE)) -> 1 | K15: =IF(ISERROR(VLOOKUP(G15,計算基礎シート!$C$5:$D$28,2,FALSE)),"",VLOOKUP(G15,計算基礎シート!$C$5:$D$28,2,FALSE)) -> 2016-10-01 | L15: =IF(ISERROR(VLOOKUP(H15,計算基礎シート!$F$3:$G$28,2,FALSE)),"",VLOOKUP(H15,計算基礎シート!$F$3:$G$28,2,FALSE)) -> 2017-07-31 | N15: =IF(ISERROR(VLOOKUP(L15,計算基礎シート!G$5:H$28,2,FALSE)),2,VLOOKUP(L15,計算基礎シート!G$5:H$28,2,FALSE)) -> 2
B16: 11 | D16: 該当 | J16: =IF(ISERROR(VLOOKUP(G16,計算基礎シート!I$5:J$28,2,FALSE)),2,VLOOKUP(G16,計算基礎シート!I$5:J$28,2,FALSE)) -> 2 | K16: =IF(ISERROR(VLOOKUP(G16,計算基礎シート!$C$5:$D$28,2,FALSE)),"",VLOOKUP(G16,計算基礎シート!$C$5:$D$28,2,FALSE)) ->  | L16: =IF(ISERROR(VLOOKUP(H16,計算基礎シート!$F$3:$G$28,2,FALSE)),"",VLOOKUP(H16,計算基礎シート!$F$3:$G$28,2,FALSE)) ->  | N16: =IF(ISERROR(VLOOKUP(L16,計算基礎シート!G$5:H$28,2,FALSE)),2,VLOOKUP(L16,計算基礎シート!G$5:H$28,2,FALSE)) -> 2
B17: 12 | D17: 該当 | J17: =IF(ISERROR(VLOOKUP(G17,計算基礎シート!I$5:J$28,2,FALSE)),2,VLOOKUP(G17,計算基礎シート!I$5:J$28,2,FALSE)) -> 2 | K17: =IF(ISERROR(VLOOKUP(G17,計算基礎シート!$C$5:$D$28,2,FALSE)),"",VLOOKUP(G17,計算基礎シート!$C$5:$D$28,2,FALSE)) ->  | L17: =IF(ISERROR(VLOOKUP(H17,計算基礎シート!$F$3:$G$28,2,FALSE)),"",VLOOKUP(H17,計算基礎シート!$F$3:$G$28,2,FALSE)) ->  | N17: =IF(ISERROR(VLOOKUP(L17,計算基礎シート!G$5:H$28,2,FALSE)),2,VLOOKUP(L17,計算基礎シート!G$5:H$28,2,FALSE)) -> 2
B18: 13 | D18: 該当 | J18: =IF(ISERROR(VLOOKUP(G18,計算基礎シート!I$5:J$28,2,FALSE)),2,VLOOKUP(G18,計算基礎シート!I$5:J$28,2,FALSE)) -> 2 | K18: =IF(ISERROR(VLOOKUP(G18,計算基礎シート!$C$5:$D$28,2,FALSE)),"",VLOOKUP(G18,計算基礎シート!$C$5:$D$28,2,FALSE)) ->  | L18: =IF(ISERROR(VLOOKUP(H18,計算基礎シート!$F$3:$G$28,2,FALSE)),"",VLOOKUP(H18,計算基礎シート!$F$3:$G$28,2,FALSE)) ->  | N18: =IF(ISERROR(VLOOKUP(L18,計算基礎シート!G$5:H$28,2,FALSE)),2,VLOOKUP(L18,計算基礎シート!G$5:H$28,2,FALSE)) -> 2
B19: 14 | D19: 該当 | J19: =IF(ISERROR(VLOOKUP(G19,計算基礎シート!I$5:J$28,2,FALSE)),2,VLOOKUP(G19,計算基礎シート!I$5:J$28,2,FALSE)) -> 2 | K19: =IF(ISERROR(VLOOKUP(G19,計算基礎シート!$C$5:$D$28,2,FALSE)),"",VLOOKUP(G19,計算基礎シート!$C$5:$D$28,2,FALSE)) ->  | L19: =IF(ISERROR(VLOOKUP(H19,計算基礎シート!$F$3:$G$28,2,FALSE)),"",VLOOKUP(H19,計算基礎シート!$F$3:$G$28,2,FALSE)) ->  | N19: =IF(ISERROR(VLOOKUP(L19,計算基礎シート!G$5:H$28,2,FALSE)),2,VLOOKUP(L19,計算基礎シート!G$5:H$28,2,FALSE)) -> 2
B20: 15 | D20: 該当 | J20: =IF(ISERROR(VLOOKUP(G20,計算基礎シート!I$5:J$28,2,FALSE)),2,VLOOKUP(G20,計算基礎シート!I$5:J$28,2,FALSE)) -> 2 | K20: =IF(ISERROR(VLOOKUP(G20,計算基礎シート!$C$5:$D$28,2,FALSE)),"",VLOOKUP(G20,計算基礎シート!$C$5:$D$28,2,FALSE)) ->  | L20: =IF(ISERROR(VLOOKUP(H20,計算基礎シート!$F$3:$G$28,2,FALSE)),"",VLOOKUP(H20,計算基礎シート!$F$3:$G$28,2,FALSE)) ->  | N20: =IF(ISERROR(VLOOKUP(L20,計算基礎シート!G$5:H$28,2,FALSE)),2,VLOOKUP(L20,計算基礎シート!G$5:H$28,2,FALSE)) -> 2
B21: 16 | D21: 該当 | J21: =IF(ISERROR(VLOOKUP(G21,計算基礎シート!I$5:J$28,2,FALSE)),2,VLOOKUP(G21,計算基礎シート!I$5:J$28,2,FALSE)) -> 2 | K21: =IF(ISERROR(VLOOKUP(G21,計算基礎シート!$C$5:$D$28,2,FALSE)),"",VLOOKUP(G21,計算基礎シート!$C$5:$D$28,2,FALSE)) ->  | L21: =IF(ISERROR(VLOOKUP(H21,計算基礎シート!$F$3:$G$28,2,FALSE)),"",VLOOKUP(H21,計算基礎シート!$F$3:$G$28,2,FALSE)) ->  | N21: =IF(ISERROR(VLOOKUP(L21,計算基礎シート!G$5:H$28,2,FALSE)),2,VLOOKUP(L21,計算基礎シート!G$5:H$28,2,FALSE)) -> 2
B22: 17 | D22: 該当 | J22: =IF(ISERROR(VLOOKUP(G22,計算基礎シート!I$5:J$28,2,FALSE)),2,VLOOKUP(G22,計算基礎シート!I$5:J$28,2,FALSE)) -> 2 | K22: =IF(ISERROR(VLOOKUP(G22,計算基礎シート!$C$5:$D$28,2,FALSE)),"",VLOOKUP(G22,計算基礎シート!$C$5:$D$28,2,FALSE)) ->  | L22: =IF(ISERROR(VLOOKUP(H22,計算基礎シート!$F$3:$G$28,2,FALSE)),"",VLOOKUP(H22,計算基礎シート!$F$3:$G$28,2,FALSE)) ->  | N22: =IF(ISERROR(VLOOKUP(L22,計算基礎シート!G$5:H$28,2,FALSE)),2,VLOOKUP(L22,計算基礎シート!G$5:H$28,2,FALSE)) -> 2
B23: 18 | D23: 該当 | J23: =IF(ISERROR(VLOOKUP(G23,計算基礎シート!I$5:J$28,2,FALSE)),2,VLOOKUP(G23,計算基礎シート!I$5:J$28,2,FALSE)) -> 2 | K23: =IF(ISERROR(VLOOKUP(G23,計算基礎シート!$C$5:$D$28,2,FALSE)),"",VLOOKUP(G23,計算基礎シート!$C$5:$D$28,2,FALSE)) ->  | L23: =IF(ISERROR(VLOOKUP(H23,計算基礎シート!$F$3:$G$28,2,FALSE)),"",VLOOKUP(H23,計算基礎シート!$F$3:$G$28,2,FALSE)) ->  | N23: =IF(ISERROR(VLOOKUP(L23,計算基礎シート!G$5:H$28,2,FALSE)),2,VLOOKUP(L23,計算基礎シート!G$5:H$28,2,FALSE)) -> 2
B24: 19 | D24: 該当 | J24: =IF(ISERROR(VLOOKUP(G24,計算基礎シート!I$5:J$28,2,FALSE)),2,VLOOKUP(G24,計算基礎シート!I$5:J$28,2,FALSE)) -> 2 | K24: =IF(ISERROR(VLOOKUP(G24,計算基礎シート!$C$5:$D$28,2,FALSE)),"",VLOOKUP(G24,計算基礎シート!$C$5:$D$28,2,FALSE)) ->  | L24: =IF(ISERROR(VLOOKUP(H24,計算基礎シート!$F$3:$G$28,2,FALSE)),"",VLOOKUP(H24,計算基礎シート!$F$3:$G$28,2,FALSE)) ->  | N24: =IF(ISERROR(VLOOKUP(L24,計算基礎シート!G$5:H$28,2,FALSE)),2,VLOOKUP(L24,計算基礎シート!G$5:H$28,2,FALSE)) -> 2
B25: 20 | D25: 該当 | J25: =IF(ISERROR(VLOOKUP(G25,計算基礎シート!I$5:J$28,2,FALSE)),2,VLOOKUP(G25,計算基礎シート!I$5:J$28,2,FALSE)) -> 2 | K25: =IF(ISERROR(VLOOKUP(G25,計算基礎シート!$C$5:$D$28,2,FALSE)),"",VLOOKUP(G25,計算基礎シート!$C$5:$D$28,2,FALSE)) ->  | L25: =IF(ISERROR(VLOOKUP(H25,計算基礎シート!$F$3:$G$28,2,FALSE)),"",VLOOKUP(H25,計算基礎シート!$F$3:$G$28,2,FALSE)) ->  | N25: =IF(ISERROR(VLOOKUP(L25,計算基礎シート!G$5:H$28,2,FALSE)),2,VLOOKUP(L25,計算基礎シート!G$5:H$28,2,FALSE)) -> 2
B26: 21 | D26: 該当 | J26: =IF(ISERROR(VLOOKUP(G26,計算基礎シート!I$5:J$28,2,FALSE)),2,VLOOKUP(G26,計算基礎シート!I$5:J$28,2,FALSE)) -> 2 | K26: =IF(ISERROR(VLOOKUP(G26,計算基礎シート!$C$5:$D$28,2,FALSE)),"",VLOOKUP(G26,計算基礎シート!$C$5:$D$28,2,FALSE)) ->  | L26: =IF(ISERROR(VLOOKUP(H26,計算基礎シート!$F$3:$G$28,2,FALSE)),"",VLOOKUP(H26,計算基礎シート!$F$3:$G$28,2,FALSE)) ->  | N26: =IF(ISERROR(VLOOKUP(L26,計算基礎シート!G$5:H$28,2,FALSE)),2,VLOOKUP(L26,計算基礎シート!G$5:H$28,2,FALSE)) -> 2
B27: 22 | D27: 該当 | J27: =IF(ISERROR(VLOOKUP(G27,計算基礎シート!I$5:J$28,2,FALSE)),2,VLOOKUP(G27,計算基礎シート!I$5:J$28,2,FALSE)) -> 2 | K27: =IF(ISERROR(VLOOKUP(G27,計算基礎シート!$C$5:$D$28,2,FALSE)),"",VLOOKUP(G27,計算基礎シート!$C$5:$D$28,2,FALSE)) ->  | L27: =IF(ISERROR(VLOOKUP(H27,計算基礎シート!$F$3:$G$28,2,FALSE)),"",VLOOKUP(H27,計算基礎シート!$F$3:$G$28,2,FALSE)) ->  | N27: =IF(ISERROR(VLOOKUP(L27,計算基礎シート!G$5:H$28,2,FALSE)),2,VLOOKUP(L27,計算基礎シート!G$5:H$28,2,FALSE)) -> 2
B28: 23 | D28: 該当 | J28: =IF(ISERROR(VLOOKUP(G28,計算基礎シート!I$5:J$28,2,FALSE)),2,VLOOKUP(G28,計算基礎シート!I$5:J$28,2,FALSE)) -> 2 | K28: =IF(ISERROR(VLOOKUP(G28,計算基礎シート!$C$5:$D$28,2,FALSE)),"",VLOOKUP(G28,計算基礎シート!$C$5:$D$28,2,FALSE)) ->  | L28: =IF(ISERROR(VLOOKUP(H28,計算基礎シート!$F$3:$G$28,2,FALSE)),"",VLOOKUP(H28,計算基礎シート!$F$3:$G$28,2,FALSE)) ->  | N28: =IF(ISERROR(VLOOKUP(L28,計算基礎シート!G$5:H$28,2,FALSE)),2,VLOOKUP(L28,計算基礎シート!G$5:H$28,2,FALSE)) -> 2
B29: 24 | D29: 該当 | J29: =IF(ISERROR(VLOOKUP(G29,計算基礎シート!I$5:J$28,2,FALSE)),2,VLOOKUP(G29,計算基礎シート!I$5:J$28,2,FALSE)) -> 2 | K29: =IF(ISERROR(VLOOKUP(G29,計算基礎シート!$C$5:$D$28,2,FALSE)),"",VLOOKUP(G29,計算基礎シート!$C$5:$D$28,2,FALSE)) ->  | L29: =IF(ISERROR(VLOOKUP(H29,計算基礎シート!$F$3:$G$28,2,FALSE)),"",VLOOKUP(H29,計算基礎シート!$F$3:$G$28,2,FALSE)) ->  | N29: =IF(ISERROR(VLOOKUP(L29,計算基礎シート!G$5:H$28,2,FALSE)),2,VLOOKUP(L29,計算基礎シート!G$5:H$28,2,FALSE)) -> 2
B30: 25 | D30: 該当 | J30: =IF(ISERROR(VLOOKUP(G30,計算基礎シート!I$5:J$28,2,FALSE)),2,VLOOKUP(G30,計算基礎シート!I$5:J$28,2,FALSE)) -> 2 | K30: =IF(ISERROR(VLOOKUP(G30,計算基礎シート!$C$5:$D$28,2,FALSE)),"",VLOOKUP(G30,計算基礎シート!$C$5:$D$28,2,FALSE)) ->  | L30: =IF(ISERROR(VLOOKUP(H30,計算基礎シート!$F$3:$G$28,2,FALSE)),"",VLOOKUP(H30,計算基礎シート!$F$3:$G$28,2,FALSE)) ->  | N30: =IF(ISERROR(VLOOKUP(L30,計算基礎シート!G$5:H$28,2,FALSE)),2,VLOOKUP(L30,計算基礎シート!G$5:H$28,2,FALSE)) -> 2
B31: 26 | D31: 該当 | J31: =IF(ISERROR(VLOOKUP(G31,計算基礎シート!I$5:J$28,2,FALSE)),2,VLOOKUP(G31,計算基礎シート!I$5:J$28,2,FALSE)) -> 2 | K31: =IF(ISERROR(VLOOKUP(G31,計算基礎シート!$C$5:$D$28,2,FALSE)),"",VLOOKUP(G31,計算基礎シート!$C$5:$D$28,2,FALSE)) ->  | L31: =IF(ISERROR(VLOOKUP(H31,計算基礎シート!$F$3:$G$28,2,FALSE)),"",VLOOKUP(H31,計算基礎シート!$F$3:$G$28,2,FALSE)) ->  | N31: =IF(ISERROR(VLOOKUP(L31,計算基礎シート!G$5:H$28,2,FALSE)),2,VLOOKUP(L31,計算基礎シート!G$5:H$28,2,FALSE)) -> 2
B32: 27 | D32: 該当 | J32: =IF(ISERROR(VLOOKUP(G32,計算基礎シート!I$5:J$28,2,FALSE)),2,VLOOKUP(G32,計算基礎シート!I$5:J$28,2,FALSE)) -> 2 | K32: =IF(ISERROR(VLOOKUP(G32,計算基礎シート!$C$5:$D$28,2,FALSE)),"",VLOOKUP(G32,計算基礎シート!$C$5:$D$28,2,FALSE)) ->  | L32: =IF(ISERROR(VLOOKUP(H32,計算基礎シート!$F$3:$G$28,2,FALSE)),"",VLOOKUP(H32,計算基礎シート!$F$3:$G$28,2,FALSE)) ->  | N32: =IF(ISERROR(VLOOKUP(L32,計算基礎シート!G$5:H$28,2,FALSE)),2,VLOOKUP(L32,計算基礎シート!G$5:H$28,2,FALSE)) -> 2
B33: 28 | D33: 該当 | J33: =IF(ISERROR(VLOOKUP(G33,計算基礎シート!I$5:J$28,2,FALSE)),2,VLOOKUP(G33,計算基礎シート!I$5:J$28,2,FALSE)) -> 2 | K33: =IF(ISERROR(VLOOKUP(G33,計算基礎シート!$C$5:$D$28,2,FALSE)),"",VLOOKUP(G33,計算基礎シート!$C$5:$D$28,2,FALSE)) ->  | L33: =IF(ISERROR(VLOOKUP(H33,計算基礎シート!$F$3:$G$28,2,FALSE)),"",VLOOKUP(H33,計算基礎シート!$F$3:$G$28,2,FALSE)) ->  | N33: =IF(ISERROR(VLOOKUP(L33,計算基礎シート!G$5:H$28,2,FALSE)),2,VLOOKUP(L33,計算基礎シート!G$5:H$28,2,FALSE)) -> 2
B34: 29 | D34: 該当 | J34: =IF(ISERROR(VLOOKUP(G34,計算基礎シート!I$5:J$28,2,FALSE)),2,VLOOKUP(G34,計算基礎シート!I$5:J$28,2,FALSE)) -> 2 | K34: =IF(ISERROR(VLOOKUP(G34,計算基礎シート!$C$5:$D$28,2,FALSE)),"",VLOOKUP(G34,計算基礎シート!$C$5:$D$28,2,FALSE)) ->  | L34: =IF(ISERROR(VLOOKUP(H34,計算基礎シート!$F$3:$G$28,2,FALSE)),"",VLOOKUP(H34,計算基礎シート!$F$3:$G$28,2,FALSE)) ->  | N34: =IF(ISERROR(VLOOKUP(L34,計算基礎シート!G$5:H$28,2,FALSE)),2,VLOOKUP(L34,計算基礎シート!G$5:H$28,2,FALSE)) -> 2
B35: 30 | D35: 該当 | J35: =IF(ISERROR(VLOOKUP(G35,計算基礎シート!I$5:J$28,2,FALSE)),2,VLOOKUP(G35,計算基礎シート!I$5:J$28,2,FALSE)) -> 2 | K35: =IF(ISERROR(VLOOKUP(G35,計算基礎シート!$C$5:$D$28,2,FALSE)),"",VLOOKUP(G35,計算基礎シート!$C$5:$D$28,2,FALSE)) ->  | L35: =IF(ISERROR(VLOOKUP(H35,計算基礎シート!$F$3:$G$28,2,FALSE)),"",VLOOKUP(H35,計算基礎シート!$F$3:$G$28,2,FALSE)) ->  | N35: =IF(ISERROR(VLOOKUP(L35,計算基礎シート!G$5:H$28,2,FALSE)),2,VLOOKUP(L35,計算基礎シート!G$5:H$28,2,FALSE)) -> 2
A37: 該当
A38: 非該当

Sheet 給与入力
B4: １、基準雇用者給与等支給額の入力
B5: Ｎｏ． | C5: 1 | D5: 2 | E5: 3 | F5: 4 | G5: 5 | H5: 6 | I5: 7 | J5: 8 | K5: 9 | L5: 10 | M5: 11 | N5: 12 | O5: 13 | P5: 14 | Q5: 15 | R5: 16 | S5: 17 | T5: 18 | U5: 19 | V5: 20 | W5: 21 | X5: 22 | Y5: 23 | Z5: 24 | AA5: 25 | AB5: 26 | AC5: 27 | AD5: 28 | AE5: 29 | AF5: 30 | AG5: 合計
B6: 名前 | C6: =VLOOKUP(C5,従業員情報!$B$6:$C$35,2,FALSE) -> 今野 友夫 | D6: =VLOOKUP(D5,従業員情報!$B$6:$C$35,2,FALSE) -> 今野 朝子 | E6: =VLOOKUP(E5,従業員情報!$B$6:$C$35,2,FALSE) -> 今野 祥子 | F6: =VLOOKUP(F5,従業員情報!$B$6:$C$35,2,FALSE) -> 川西 めぐみ | G6: =VLOOKUP(G5,従業員情報!$B$6:$C$35,2,FALSE) -> 鳥居 雅之 | H6: =VLOOKUP(H5,従業員情報!$B$6:$C$35,2,FALSE) -> 絹延橋 みつ子 | I6: =VLOOKUP(I5,従業員情報!$B$6:$C$35,2,FALSE) -> 笹部 菜穂美 | J6: =VLOOKUP(J5,従業員情報!$B$6:$C$35,2,FALSE) -> 山下 典子 | K6: =VLOOKUP(K5,従業員情報!$B$6:$C$35,2,FALSE) -> 畦野 保則 | L6: =VLOOKUP(L5,従業員情報!$B$6:$C$35,2,FALSE) -> 滝山 隆一 | M6: =VLOOKUP(M5,従業員情報!$B$6:$C$35,2,FALSE) -> 0 | N6: =VLOOKUP(N5,従業員情報!$B$6:$C$35,2,FALSE) -> 0 | O6: =VLOOKUP(O5,従業員情報!$B$6:$C$35,2,FALSE) -> 0 | P6: =VLOOKUP(P5,従業員情報!$B$6:$C$35,2,FALSE) -> 0 | Q6: =VLOOKUP(Q5,従業員情報!$B$6:$C$35,2,FALSE) -> 0 | R6: =VLOOKUP(R5,従業員情報!$B$6:$C$35,2,FALSE) -> 0 | S6: =VLOOKUP(S5,従業員情報!$B$6:$C$35,2,FALSE) -> 0 | T6: =VLOOKUP(T5,従業員情報!$B$6:$C$35,2,FALSE) -> 0 | U6: =VLOOKUP(U5,従業員情報!$B$6:$C$35,2,FALSE) -> 0 | V6: =VLOOKUP(V5,従業員情報!$B$6:$C$35,2,FALSE) -> 0 | W6: =VLOOKUP(W5,従業員情報!$B$6:$C$35,2,FALSE) -> 0 | X6: =VLOOKUP(X5,従業員情報!$B$6:$C$35,2,FALSE) -> 0 | Y6: =VLOOKUP(Y5,従業員情報!$B$6:$C$35,2,FALSE) -> 0 | Z6: =VLOOKUP(Z5,従業員情報!$B$6:$C$35,2,FALSE) -> 0 | AA6: =VLOOKUP(AA5,従業員情報!$B$6:$C$35,2,FALSE) -> 0 | AB6: =VLOOKUP(AB5,従業員情報!$B$6:$C$35,2,FALSE) -> 0 | AC6: =VLOOKUP(AC5,従業員情報!$B$6:$C$35,2,FALSE) -> 0 | AD6: =VLOOKUP(AD5,従業員情報!$B$6:$C$35,2,FALSE) -> 0 | AE6: =VLOOKUP(AE5,従業員情報!$B$6:$C$35,2,FALSE) -> 0 | AF6: =VLOOKUP(AF5,従業員情報!$B$6:$C$35,2,FALSE) -> 0 | AG6: =SUM(C7:AF7) -> 0
B7: 国内雇用者 | C7: =IF(ISERROR(VLOOKUP(C5,従業員情報!$B$6:$H$35,4,FALSE)),"",VLOOKUP(C5,従業員情報!$B$6:$H$35,4,FALSE)) -> 0 | D7: =IF(ISERROR(VLOOKUP(D5,従業員情報!$B$6:$H$35,4,FALSE)),"",VLOOKUP(D5,従業員情報!$B$6:$H$35,4,FALSE)) -> 0 | E7: =IF(ISERROR(VLOOKUP(E5,従業員情報!$B$6:$H$35,4,FALSE)),"",VLOOKUP(E5,従業員情報!$B$6:$H$35,4,FALSE)) -> 0 | F7: =IF(ISERROR(VLOOKUP(F5,従業員情報!$B$6:$H$35,4,FALSE)),"",VLOOKUP(F5,従業員情報!$B$6:$H$35,4,FALSE)) -> 該当 | G7: =IF(ISERROR(VLOOKUP(G5,従業員情報!$B$6:$H$35,4,FALSE)),"",VLOOKUP(G5,従業員情報!$B$6:$H$35,4,FALSE)) -> 該当 | H7: =IF(ISERROR(VLOOKUP(H5,従業員情報!$B$6:$H$35,4,FALSE)),"",VLOOKUP(H5,従業員情報!$B$6:$H$35,4,FALSE)) -> 該当 | I7: =IF(ISERROR(VLOOKUP(I5,従業員情報!$B$6:$H$35,4,FALSE)),"",VLOOKUP(I5,従業員情報!$B$6:$H$35,4,FALSE)) -> 該当 | J7: =IF(ISERROR(VLOOKUP(J5,従業員情報!$B$6:$H$35,4,FALSE)),"",VLOOKUP(J5,従業員情報!$B$6:$H$35,4,FALSE)) -> 該当 | K7: =IF(ISERROR(VLOOKUP(K5,従業員情報!$B$6:$H$35,4,FALSE)),"",VLOOKUP(K5,従業員情報!$B$6:$H$35,4,FALSE)) -> 該当 | L7: =IF(ISERROR(VLOOKUP(L5,従業員情報!$B$6:$H$35,4,FALSE)),"",VLOOKUP(L5,従業員情報!$B$6:$H$35,4,FALSE)) -> 該当 | M7: =IF(ISERROR(VLOOKUP(M5,従業員情報!$B$6:$H$35,4,FALSE)),"",VLOOKUP(M5,従業員情報!$B$6:$H$35,4,FALSE)) -> 0 | N7: =IF(ISERROR(VLOOKUP(N5,従業員情報!$B$6:$H$35,4,FALSE)),"",VLOOKUP(N5,従業員情報!$B$6:$H$35,4,FALSE)) -> 0 | O7: =IF(ISERROR(VLOOKUP(O5,従業員情報!$B$6:$H$35,4,FALSE)),"",VLOOKUP(O5,従業員情報!$B$6:$H$35,4,FALSE)) -> 0 | P7: =IF(ISERROR(VLOOKUP(P5,従業員情報!$B$6:$H$35,4,FALSE)),"",VLOOKUP(P5,従業員情報!$B$6:$H$35,4,FALSE)) -> 0 | Q7: =IF(ISERROR(VLOOKUP(Q5,従業員情報!$B$6:$H$35,4,FALSE)),"",VLOOKUP(Q5,従業員情報!$B$6:$H$35,4,FALSE)) -> 0 | R7: =IF(ISERROR(VLOOKUP(R5,従業員情報!$B$6:$H$35,4,FALSE)),"",VLOOKUP(R5,従業員情報!$B$6:$H$35,4,FALSE)) -> 0 | S7: =IF(ISERROR(VLOOKUP(S5,従業員情報!$B$6:$H$35,4,FALSE)),"",VLOOKUP(S5,従業員情報!$B$6:$H$35,4,FALSE)) -> 0 | T7: =IF(ISERROR(VLOOKUP(T5,従業員情報!$B$6:$H$35,4,FALSE)),"",VLOOKUP(T5,従業員情報!$B$6:$H$35,4,FALSE)) -> 0 | U7: =IF(ISERROR(VLOOKUP(U5,従業員情報!$B$6:$H$35,4,FALSE)),"",VLOOKUP(U5,従業員情報!$B$6:$H$35,4,FALSE)) -> 0 | V7: =IF(ISERROR(VLOOKUP(V5,従業員情報!$B$6:$H$35,4,FALSE)),"",VLOOKUP(V5,従業員情報!$B$6:$H$35,4,FALSE)) -> 0 | W7: =IF(ISERROR(VLOOKUP(W5,従業員情報!$B$6:$H$35,4,FALSE)),"",VLOOKUP(W5,従業員情報!$B$6:$H$35,4,FALSE)) -> 0 | X7: =IF(ISERROR(VLOOKUP(X5,従業員情報!$B$6:$H$35,4,FALSE)),"",VLOOKUP(X5,従業員情報!$B$6:$H$35,4,FALSE)) -> 0 | Y7: =IF(ISERROR(VLOOKUP(Y5,従業員情報!$B$6:$H$35,4,FALSE)),"",VLOOKUP(Y5,従業員情報!$B$6:$H$35,4,FALSE)) -> 0 | Z7: =IF(ISERROR(VLOOKUP(Z5,従業員情報!$B$6:$H$35,4,FALSE)),"",VLOOKUP(Z5,従業員情報!$B$6:$H$35,4,FALSE)) -> 0 | AA7: =IF(ISERROR(VLOOKUP(AA5,従業員情報!$B$6:$H$35,4,FALSE)),"",VLOOKUP(AA5,従業員情報!$B$6:$H$35,4,FALSE)) -> 0 | AB7: =IF(ISERROR(VLOOKUP(AB5,従業員情報!$B$6:$H$35,4,FALSE)),"",VLOOKUP(AB5,従業員情報!$B$6:$H$35,4,FALSE)) -> 0 | AC7: =IF(ISERROR(VLOOKUP(AC5,従業員情報!$B$6:$H$35,4,FALSE)),"",VLOOKUP(AC5,従業員情報!$B$6:$H$35,4,FALSE)) -> 0 | AD7: =IF(ISERROR(VLOOKUP(AD5,従業員情報!$B$6:$H$35,4,FALSE)),"",VLOOKUP(AD5,従業員情報!$B$6:$H$35,4,FALSE)) -> 0 | AE7: =IF(ISERROR(VLOOKUP(AE5,従業員情報!$B$6:$H$35,4,FALSE)),"",VLOOKUP(AE5,従業員情報!$B$6:$H$35,4,FALSE)) -> 0 | AF7: =IF(ISERROR(VLOOKUP(AF5,従業員情報!$B$6:$H$35,4,FALSE)),"",VLOOKUP(AF5,従業員情報!$B$6:$H$35,4,FALSE)) -> 0
B8: =基本情報!C17 -> 2012-10-01 | F8: 240000 | G8: 30000 | H8: 320500 | K8: 185000 | L8: 105000 | AG8: =SUM(C8:AF8) -> 880500
B9: =IF($B$8="-","-",EOMONTH(B8,1)) -> 2012-11-30 | F9: 232000 | G9: 50000 | H9: 310500 | K9: 192000 | L9: 123000 | AG9: =SUM(C9:AF9) -> 907500
B10: =IF($B$8="-","-",EOMONTH(B9,1)) -> 2012-12-31 | F10: 235000 | G10: 40000 | H10: 310200 | K10: 178000 | L10: 115000 | AG10: 878200
B11: 2013-01-31 | F11: 242000 | G11: 30000 | H11: 320300 | K11: 192000 | L11: 178000 | AG11: 962300
B12: 2013-02-28 | F12: 238000 | G12: 20000 | H12: 330000 | K12: 168000 | L12: 123500 | AG12: 879500
B13: 2013-03-31 | F13: 229000 | G13: 50000 | H13: 380000 | K13: 173000 | L13: 156000 | AG13: 988000
B14: 2013-04-30 | F14: 228000 | G14: 60000 | H14: 320000 | K14: 169000 | L14: 165000 | AG14: 942000
B15: 2013-05-31 | F15: 231000 | G15: 80000 | H15: 310500 | K15: 185000 | L15: 148000 | AG15: 954500
B16: 2013-06-30 | F16: 240500 | G16: 70000 | H16: 300500 | K16: 193000 | L16: 132500 | AG16: 936500
B17: 2013-07-31 | F17: 229000 | G17: 50000 | H17: 320000 | K17: 178000 | L17: 180000 | AG17: 957000
B18: 2013-08-31 | F18: 232000 | G18: 60000 | H18: 320550 | K18: 172000 | L18: 123000 | AG18: 907550
B19: 2013-09-30 | F19: 239000 | G19: 80000 | H19: 320000 | K19: 179000 | L19: 178000 | AG19: 996000
B20: 賞与など | F20: 250000 | G20: 20000 | H20: 250000 | K20: 150000 | L20: 158000 | AG20: 828000
B21: 合計 | C21: =SUM(C8:C20) -> 0 | D21: =SUM(D8:D20) -> 0 | E21: 0 | F21: 3065500 | G21: 640000 | H21: 4113050 | I21: 0 | J21: 0 | K21: 2314000 | L21: 1885000 | M21: 0 | N21: 0 | O21: 0 | P21: 0 | Q21: 0 | R21: 0 | S21: 0 | T21: 0 | U21: 0 | V21: 0 | W21: 0 | X21: 0 | Y21: 0 | Z21: 0 | AA21: 0 | AB21: 0 | AC21: 0 | AD21: 0 | AE21: 0 | AF21: 0 | AG21: 12017550
B24: ２、比較雇用者給与等支給額の入力
B25: Ｎｏ． | C25: 1 | D25: 2 | E25: 3 | F25: 4 | G25: 5 | H25: 6 | I25: 7 | J25: 8 | K25: 9 | L25: 10 | M25: 11 | N25: 12 | O25: 13 | P25: 14 | Q25: 15 | R25: 16 | S25: 17 | T25: 18 | U25: 19 | V25: 20 | W25: 21 | X25: 22 | Y25: 23 | Z25: 24 | AA25: 25 | AB25: 26 | AC25: 27 | AD25: 28 | AE25: 29 | AF25: 30 | AG25: 合計 | AH25: 月別継続 雇用者数
B26: 名前 | C26: =VLOOKUP(C25,従業員情報!$B$6:$C$35,2,FALSE) -> 今野 友夫 | D26: =VLOOKUP(D25,従業員情報!$B$6:$C$35,2,FALSE) -> 今野 朝子 | E26: =VLOOKUP(E25,従業員情報!$B$6:$C$35,2,FALSE) -> 今野 祥子 | F26: =VLOOKUP(F25,従業員情報!$B$6:$C$35,2,FALSE) -> 川西 めぐみ | G26: =VLOOKUP(G25,従業員情報!$B$6:$C$35,2,FALSE) -> 鳥居 雅之 | H26: =VLOOKUP(H25,従業員情報!$B$6:$C$35,2,FALSE) -> 絹延橋 みつ子 | I26: =VLOOKUP(I25,従業員情報!$B$6:$C$35,2,FALSE) -> 笹部 菜穂美 | J26: =VLOOKUP(J25,従業員情報!$B$6:$C$35,2,FALSE) -> 山下 典子 | K26: =VLOOKUP(K25,従業員情報!$B$6:$C$35,2,FALSE) -> 畦野 保則 | L26: =VLOOKUP(L25,従業員情報!$B$6:$C$35,2,FALSE) -> 滝山 隆一 | M26: =VLOOKUP(M25,従業員情報!$B$6:$C$35,2,FALSE) -> 0 | N26: =VLOOKUP(N25,従業員情報!$B$6:$C$35,2,FALSE) -> 0 | O26: =VLOOKUP(O25,従業員情報!$B$6:$C$35,2,FALSE) -> 0 | P26: =VLOOKUP(P25,従業員情報!$B$6:$C$35,2,FALSE) -> 0 | Q26: =VLOOKUP(Q25,従業員情報!$B$6:$C$35,2,FALSE) -> 0 | R26: =VLOOKUP(R25,従業員情報!$B$6:$C$35,2,FALSE) -> 0 | S26: =VLOOKUP(S25,従業員情報!$B$6:$C$35,2,FALSE) -> 0 | T26: =VLOOKUP(T25,従業員情報!$B$6:$C$35,2,FALSE) -> 0 | U26: =VLOOKUP(U25,従業員情報!$B$6:$C$35,2,FALSE) -> 0 | V26: =VLOOKUP(V25,従業員情報!$B$6:$C$35,2,FALSE) -> 0 | W26: =VLOOKUP(W25,従業員情報!$B$6:$C$35,2,FALSE) -> 0 | X26: =VLOOKUP(X25,従業員情報!$B$6:$C$35,2,FALSE) -> 0 | Y26: =VLOOKUP(Y25,従業員情報!$B$6:$C$35,2,FALSE) -> 0 | Z26: =VLOOKUP(Z25,従業員情報!$B$6:$C$35,2,FALSE) -> 0 | AA26: =VLOOKUP(AA25,従業員情報!$B$6:$C$35,2,FALSE) -> 0 | AB26: =VLOOKUP(AB25,従業員情報!$B$6:$C$35,2,FALSE) -> 0 | AC26: =VLOOKUP(AC25,従業員情報!$B$6:$C$35,2,FALSE) -> 0 | AD26: =VLOOKUP(AD25,従業員情報!$B$6:$C$35,2,FALSE) -> 0 | AE26: =VLOOKUP(AE25,従業員情報!$B$6:$C$35,2,FALSE) -> 0 | AF26: =VLOOKUP(AF25,従業員情報!$B$6:$C$35,2,FALSE) -> 0 | AG26: =SUM(C27:AF27) -> 0
B27: 国内雇用者 | C27: =IF(ISERROR(VLOOKUP(C25,従業員情報!$B$6:$H$35,4,FALSE)),"",VLOOKUP(C25,従業員情報!$B$6:$H$35,4,FALSE)) -> 0 | D27: =IF(ISERROR(VLOOKUP(D25,従業員情報!$B$6:$H$35,4,FALSE)),"",VLOOKUP(D25,従業員情報!$B$6:$H$35,4,FALSE)) -> 0 | E27: =IF(ISERROR(VLOOKUP(E25,従業員情報!$B$6:$H$35,4,FALSE)),"",VLOOKUP(E25,従業員情報!$B$6:$H$35,4,FALSE)) -> 0 | F27: =IF(ISERROR(VLOOKUP(F25,従業員情報!$B$6:$H$35,4,FALSE)),"",VLOOKUP(F25,従業員情報!$B$6:$H$35,4,FALSE)) -> 該当 | G27: =IF(ISERROR(VLOOKUP(G25,従業員情報!$B$6:$H$35,4,FALSE)),"",VLOOKUP(G25,従業員情報!$B$6:$H$35,4,FALSE)) -> 該当 | H27: =IF(ISERROR(VLOOKUP(H25,従業員情報!$B$6:$H$35,4,FALSE)),"",VLOOKUP(H25,従業員情報!$B$6:$H$35,4,FALSE)) -> 該当 | I27: =IF(ISERROR(VLOOKUP(I25,従業員情報!$B$6:$H$35,4,FALSE)),"",VLOOKUP(I25,従業員情報!$B$6:$H$35,4,FALSE)) -> 該当 | J27: =IF(ISERROR(VLOOKUP(J25,従業員情報!$B$6:$H$35,4,FALSE)),"",VLOOKUP(J25,従業員情報!$B$6:$H$35,4,FALSE)) -> 該当 | K27: =IF(ISERROR(VLOOKUP(K25,従業員情報!$B$6:$H$35,4,FALSE)),"",VLOOKUP(K25,従業員情報!$B$6:$H$35,4,FALSE)) -> 該当 | L27: =IF(ISERROR(VLOOKUP(L25,従業員情報!$B$6:$H$35,4,FALSE)),"",VLOOKUP(L25,従業員情報!$B$6:$H$35,4,FALSE)) -> 該当 | M27: =IF(ISERROR(VLOOKUP(M25,従業員情報!$B$6:$H$35,4,FALSE)),"",VLOOKUP(M25,従業員情報!$B$6:$H$35,4,FALSE)) -> 0 | N27: =IF(ISERROR(VLOOKUP(N25,従業員情報!$B$6:$H$35,4,FALSE)),"",VLOOKUP(N25,従業員情報!$B$6:$H$35,4,FALSE)) -> 0 | O27: =IF(ISERROR(VLOOKUP(O25,従業員情報!$B$6:$H$35,4,FALSE)),"",VLOOKUP(O25,従業員情報!$B$6:$H$35,4,FALSE)) -> 0 | P27: =IF(ISERROR(VLOOKUP(P25,従業員情報!$B$6:$H$35,4,FALSE)),"",VLOOKUP(P25,従業員情報!$B$6:$H$35,4,FALSE)) -> 0 | Q27: =IF(ISERROR(VLOOKUP(Q25,従業員情報!$B$6:$H$35,4,FALSE)),"",VLOOKUP(Q25,従業員情報!$B$6:$H$35,4,FALSE)) -> 0 | R27: =IF(ISERROR(VLOOKUP(R25,従業員情報!$B$6:$H$35,4,FALSE)),"",VLOOKUP(R25,従業員情報!$B$6:$H$35,4,FALSE)) -> 0 | S27: =IF(ISERROR(VLOOKUP(S25,従業員情報!$B$6:$H$35,4,FALSE)),"",VLOOKUP(S25,従業員情報!$B$6:$H$35,4,FALSE)) -> 0 | T27: =IF(ISERROR(VLOOKUP(T25,従業員情報!$B$6:$H$35,4,FALSE)),"",VLOOKUP(T25,従業員情報!$B$6:$H$35,4,FALSE)) -> 0 | U27: =IF(ISERROR(VLOOKUP(U25,従業員情報!$B$6:$H$35,4,FALSE)),"",VLOOKUP(U25,従業員情報!$B$6:$H$35,4,FALSE)) -> 0 | V27: =IF(ISERROR(VLOOKUP(V25,従業員情報!$B$6:$H$35,4,FALSE)),"",VLOOKUP(V25,従業員情報!$B$6:$H$35,4,FALSE)) -> 0 | W27: =IF(ISERROR(VLOOKUP(W25,従業員情報!$B$6:$H$35,4,FALSE)),"",VLOOKUP(W25,従業員情報!$B$6:$H$35,4,FALSE)) -> 0 | X27: =IF(ISERROR(VLOOKUP(X25,従業員情報!$B$6:$H$35,4,FALSE)),"",VLOOKUP(X25,従業員情報!$B$6:$H$35,4,FALSE)) -> 0 | Y27: =IF(ISERROR(VLOOKUP(Y25,従業員情報!$B$6:$H$35,4,FALSE)),"",VLOOKUP(Y25,従業員情報!$B$6:$H$35,4,FALSE)) -> 0 | Z27: =IF(ISERROR(VLOOKUP(Z25,従業員情報!$B$6:$H$35,4,FALSE)),"",VLOOKUP(Z25,従業員情報!$B$6:$H$35,4,FALSE)) -> 0 | AA27: =IF(ISERROR(VLOOKUP(AA25,従業員情報!$B$6:$H$35,4,FALSE)),"",VLOOKUP(AA25,従業員情報!$B$6:$H$35,4,FALSE)) -> 0 | AB27: =IF(ISERROR(VLOOKUP(AB25,従業員情報!$B$6:$H$35,4,FALSE)),"",VLOOKUP(AB25,従業員情報!$B$6:$H$35,4,FALSE)) -> 0 | AC27: =IF(ISERROR(VLOOKUP(AC25,従業員情報!$B$6:$H$35,4,FALSE)),"",VLOOKUP(AC25,従業員情報!$B$6:$H$35,4,FALSE)) -> 0 | AD27: =IF(ISERROR(VLOOKUP(AD25,従業員情報!$B$6:$H$35,4,FALSE)),"",VLOOKUP(AD25,従業員情報!$B$6:$H$35,4,FALSE)) -> 0 | AE27: =IF(ISERROR(VLOOKUP(AE25,従業員情報!$B$6:$H$35,4,FALSE)),"",VLOOKUP(AE25,従業員情報!$B$6:$H$35,4,FALSE)) -> 0 | AF27: =IF(ISERROR(VLOOKUP(AF25,従業員情報!$B$6:$H$35,4,FALSE)),"",VLOOKUP(AF25,従業員情報!$B$6:$H$35,4,FALSE)) -> 0
B28: 継続雇用者 | C28: =IF(ISERROR(VLOOKUP(C25,従業員情報!$B$6:$M$35,12,FALSE)),"",VLOOKUP(C25,従業員情報!$B$6:$M$35,12,FALSE)) ->  | D28: =IF(ISERROR(VLOOKUP(D25,従業員情報!$B$6:$M$35,12,FALSE)),"",VLOOKUP(D25,従業員情報!$B$6:$M$35,12,FALSE)) ->  | E28: =IF(ISERROR(VLOOKUP(E25,従業員情報!$B$6:$M$35,12,FALSE)),"",VLOOKUP(E25,従業員情報!$B$6:$M$35,12,FALSE)) ->  | F28: =IF(ISERROR(VLOOKUP(F25,従業員情報!$B$6:$M$35,12,FALSE)),"",VLOOKUP(F25,従業員情報!$B$6:$M$35,12,FALSE)) -> 該当 | G28: =IF(ISERROR(VLOOKUP(G25,従業員情報!$B$6:$M$35,12,FALSE)),"",VLOOKUP(G25,従業員情報!$B$6:$M$35,12,FALSE)) ->  | H28: =IF(ISERROR(VLOOKUP(H25,従業員情報!$B$6:$M$35,12,FALSE)),"",VLOOKUP(H25,従業員情報!$B$6:$M$35,12,FALSE)) -> 該当 | I28: =IF(ISERROR(VLOOKUP(I25,従業員情報!$B$6:$M$35,12,FALSE)),"",VLOOKUP(I25,従業員情報!$B$6:$M$35,12,FALSE)) ->  | J28: =IF(ISERROR(VLOOKUP(J25,従業員情報!$B$6:$M$35,12,FALSE)),"",VLOOKUP(J25,従業員情報!$B$6:$M$35,12,FALSE)) -> 該当 | K28: =IF(ISERROR(VLOOKUP(K25,従業員情報!$B$6:$M$35,12,FALSE)),"",VLOOKUP(K25,従業員情報!$B$6:$M$35,12,FALSE)) -> 該当 | L28: =IF(ISERROR(VLOOKUP(L25,従業員情報!$B$6:$M$35,12,FALSE)),"",VLOOKUP(L25,従業員情報!$B$6:$M$35,12,FALSE)) ->  | M28: =IF(ISERROR(VLOOKUP(M25,従業員情報!$B$6:$M$35,12,FALSE)),"",VLOOKUP(M25,従業員情報!$B$6:$M$35,12,FALSE)) ->  | N28: =IF(ISERROR(VLOOKUP(N25,従業員情報!$B$6:$M$35,12,FALSE)),"",VLOOKUP(N25,従業員情報!$B$6:$M$35,12,FALSE)) ->  | O28: =IF(ISERROR(VLOOKUP(O25,従業員情報!$B$6:$M$35,12,FALSE)),"",VLOOKUP(O25,従業員情報!$B$6:$M$35,12,FALSE)) ->  | P28: =IF(ISERROR(VLOOKUP(P25,従業員情報!$B$6:$M$35,12,FALSE)),"",VLOOKUP(P25,従業員情報!$B$6:$M$35,12,FALSE)) ->  | Q28: =IF(ISERROR(VLOOKUP(Q25,従業員情報!$B$6:$M$35,12,FALSE)),"",VLOOKUP(Q25,従業員情報!$B$6:$M$35,12,FALSE)) ->  | R28: =IF(ISERROR(VLOOKUP(R25,従業員情報!$B$6:$M$35,12,FALSE)),"",VLOOKUP(R25,従業員情報!$B$6:$M$35,12,FALSE)) ->  | S28: =IF(ISERROR(VLOOKUP(S25,従業員情報!$B$6:$M$35,12,FALSE)),"",VLOOKUP(S25,従業員情報!$B$6:$M$35,12,FALSE)) ->  | T28: =IF(ISERROR(VLOOKUP(T25,従業員情報!$B$6:$M$35,12,FALSE)),"",VLOOKUP(T25,従業員情報!$B$6:$M$35,12,FALSE)) ->  | U28: =IF(ISERROR(VLOOKUP(U25,従業員情報!$B$6:$M$35,12,FALSE)),"",VLOOKUP(U25,従業員情報!$B$6:$M$35,12,FALSE)) ->  | V28: =IF(ISERROR(VLOOKUP(V25,従業員情報!$B$6:$M$35,12,FALSE)),"",VLOOKUP(V25,従業員情報!$B$6:$M$35,12,FALSE)) ->  | W28: =IF(ISERROR(VLOOKUP(W25,従業員情報!$B$6:$M$35,12,FALSE)),"",VLOOKUP(W25,従業員情報!$B$6:$M$35,12,FALSE)) ->  | X28: =IF(ISERROR(VLOOKUP(X25,従業員情報!$B$6:$M$35,12,FALSE)),"",VLOOKUP(X25,従業員情報!$B$6:$M$35,12,FALSE)) ->  | Y28: =IF(ISERROR(VLOOKUP(Y25,従業員情報!$B$6:$M$35,12,FALSE)),"",VLOOKUP(Y25,従業員情報!$B$6:$M$35,12,FALSE)) ->  | Z28: =IF(ISERROR(VLOOKUP(Z25,従業員情報!$B$6:$M$35,12,FALSE)),"",VLOOKUP(Z25,従業員情報!$B$6:$M$35,12,FALSE)) ->  | AA28: =IF(ISERROR(VLOOKUP(AA25,従業員情報!$B$6:$M$35,12,FALSE)),"",VLOOKUP(AA25,従業員情報!$B$6:$M$35,12,FALSE)) ->  | AB28: =IF(ISERROR(VLOOKUP(AB25,従業員情報!$B$6:$M$35,12,FALSE)),"",VLOOKUP(AB25,従業員情報!$B$6:$M$35,12,FALSE)) ->  | AC28: =IF(ISERROR(VLOOKUP(AC25,従業員情報!$B$6:$M$35,12,FALSE)),"",VLOOKUP(AC25,従業員情報!$B$6:$M$35,12,FALSE)) ->  | AD28: =IF(ISERROR(VLOOKUP(AD25,従業員情報!$B$6:$M$35,12,FALSE)),"",VLOOKUP(AD25,従業員情報!$B$6:$M$35,12,FALSE)) ->  | AE28: =IF(ISERROR(VLOOKUP(AE25,従業員情報!$B$6:$M$35,12,FALSE)),"",VLOOKUP(AE25,従業員情報!$B$6:$M$35,12,FALSE)) ->  | AF28: =IF(ISERROR(VLOOKUP(AF25,従業員情報!$B$6:$M$35,12,FALSE)),"",VLOOKUP(AF25,従業員情報!$B$6:$M$35,12,FALSE)) -> 
B29: 被保険者開始月 | C29: =IF(ISERROR(VLOOKUP(C25,従業員情報!$B$6:$M$35,10,FALSE)),"",VLOOKUP(C25,従業員情報!$B$6:$M$35,10,FALSE)) ->  | D29: =IF(ISERROR(VLOOKUP(D25,従業員情報!$B$6:$M$35,10,FALSE)),"",VLOOKUP(D25,従業員情報!$B$6:$M$35,10,FALSE)) ->  | E29: =IF(ISERROR(VLOOKUP(E25,従業員情報!$B$6:$M$35,10,FALSE)),"",VLOOKUP(E25,従業員情報!$B$6:$M$35,10,FALSE)) ->  | F29: =IF(ISERROR(VLOOKUP(F25,従業員情報!$B$6:$M$35,10,FALSE)),"",VLOOKUP(F25,従業員情報!$B$6:$M$35,10,FALSE)) -> 2016-10-01 | G29: =IF(ISERROR(VLOOKUP(G25,従業員情報!$B$6:$M$35,10,FALSE)),"",VLOOKUP(G25,従業員情報!$B$6:$M$35,10,FALSE)) ->  | H29: =IF(ISERROR(VLOOKUP(H25,従業員情報!$B$6:$M$35,10,FALSE)),"",VLOOKUP(H25,従業員情報!$B$6:$M$35,10,FALSE)) -> 2016-10-01 | I29: =IF(ISERROR(VLOOKUP(I25,従業員情報!$B$6:$M$35,10,FALSE)),"",VLOOKUP(I25,従業員情報!$B$6:$M$35,10,FALSE)) -> 2018-04-30 | J29: =IF(ISERROR(VLOOKUP(J25,従業員情報!$B$6:$M$35,10,FALSE)),"",VLOOKUP(J25,従業員情報!$B$6:$M$35,10,FALSE)) -> 2016-11-30 | K29: =IF(ISERROR(VLOOKUP(K25,従業員情報!$B$6:$M$35,10,FALSE)),"",VLOOKUP(K25,従業員情報!$B$6:$M$35,10,FALSE)) -> 2016-10-01 | L29: =IF(ISERROR(VLOOKUP(L25,従業員情報!$B$6:$M$35,10,FALSE)),"",VLOOKUP(L25,従業員情報!$B$6:$M$35,10,FALSE)) -> 2016-10-01 | M29: =IF(ISERROR(VLOOKUP(M25,従業員情報!$B$6:$M$35,10,FALSE)),"",VLOOKUP(M25,従業員情報!$B$6:$M$35,10,FALSE)) ->  | N29: =IF(ISERROR(VLOOKUP(N25,従業員情報!$B$6:$M$35,10,FALSE)),"",VLOOKUP(N25,従業員情報!$B$6:$M$35,10,FALSE)) ->  | O29: =IF(ISERROR(VLOOKUP(O25,従業員情報!$B$6:$M$35,10,FALSE)),"",VLOOKUP(O25,従業員情報!$B$6:$M$35,10,FALSE)) ->  | P29: =IF(ISERROR(VLOOKUP(P25,従業員情報!$B$6:$M$35,10,FALSE)),"",VLOOKUP(P25,従業員情報!$B$6:$M$35,10,FALSE)) ->  | Q29: =IF(ISERROR(VLOOKUP(Q25,従業員情報!$B$6:$M$35,10,FALSE)),"",VLOOKUP(Q25,従業員情報!$B$6:$M$35,10,FALSE)) ->  | R29: =IF(ISERROR(VLOOKUP(R25,従業員情報!$B$6:$M$35,10,FALSE)),"",VLOOKUP(R25,従業員情報!$B$6:$M$35,10,FALSE)) ->  | S29: =IF(ISERROR(VLOOKUP(S25,従業員情報!$B$6:$M$35,10,FALSE)),"",VLOOKUP(S25,従業員情報!$B$6:$M$35,10,FALSE)) ->  | T29: =IF(ISERROR(VLOOKUP(T25,従業員情報!$B$6:$M$35,10,FALSE)),"",VLOOKUP(T25,従業員情報!$B$6:$M$35,10,FALSE)) ->  | U29: =IF(ISERROR(VLOOKUP(U25,従業員情報!$B$6:$M$35,10,FALSE)),"",VLOOKUP(U25,従業員情報!$B$6:$M$35,10,FALSE)) ->  | V29: =IF(ISERROR(VLOOKUP(V25,従業員情報!$B$6:$M$35,10,FALSE)),"",VLOOKUP(V25,従業員情報!$B$6:$M$35,10,FALSE)) ->  | W29: =IF(ISERROR(VLOOKUP(W25,従業員情報!$B$6:$M$35,10,FALSE)),"",VLOOKUP(W25,従業員情報!$B$6:$M$35,10,FALSE)) ->  | X29: =IF(ISERROR(VLOOKUP(X25,従業員情報!$B$6:$M$35,10,FALSE)),"",VLOOKUP(X25,従業員情報!$B$6:$M$35,10,FALSE)) ->  | Y29: =IF(ISERROR(VLOOKUP(Y25,従業員情報!$B$6:$M$35,10,FALSE)),"",VLOOKUP(Y25,従業員情報!$B$6:$M$35,10,FALSE)) ->  | Z29: =IF(ISERROR(VLOOKUP(Z25,従業員情報!$B$6:$M$35,10,FALSE)),"",VLOOKUP(Z25,従業員情報!$B$6:$M$35,10,FALSE)) ->  | AA29: =IF(ISERROR(VLOOKUP(AA25,従業員情報!$B$6:$M$35,10,FALSE)),"",VLOOKUP(AA25,従業員情報!$B$6:$M$35,10,FALSE)) ->  | AB29: =IF(ISERROR(VLOOKUP(AB25,従業員情報!$B$6:$M$35,10,FALSE)),"",VLOOKUP(AB25,従業員情報!$B$6:$M$35,10,FALSE)) ->  | AC29: =IF(ISERROR(VLOOKUP(AC25,従業員情報!$B$6:$M$35,10,FALSE)),"",VLOOKUP(AC25,従業員情報!$B$6:$M$35,10,FALSE)) ->  | AD29: =IF(ISERROR(VLOOKUP(AD25,従業員情報!$B$6:$M$35,10,FALSE)),"",VLOOKUP(AD25,従業員情報!$B$6:$M$35,10,FALSE)) ->  | AE29: =IF(ISERROR(VLOOKUP(AE25,従業員情報!$B$6:$M$35,10,FALSE)),"",VLOOKUP(AE25,従業員情報!$B$6:$M$35,10,FALSE)) ->  | AF29: =IF(ISERROR(VLOOKUP(AF25,従業員情報!$B$6:$M$35,10,FALSE)),"",VLOOKUP(AF25,従業員情報!$B$6:$M$35,10,FALSE)) -> 
B30: 被保険者終了月 | C30: =IF(ISERROR(VLOOKUP(C25,従業員情報!$B$6:$M$35,11,FALSE)),"",VLOOKUP(C25,従業員情報!$B$6:$M$35,11,FALSE)) ->  | D30: =IF(ISERROR(VLOOKUP(D25,従業員情報!$B$6:$M$35,11,FALSE)),"",VLOOKUP(D25,従業員情報!$B$6:$M$35,11,FALSE)) ->  | E30: =IF(ISERROR(VLOOKUP(E25,従業員情報!$B$6:$M$35,11,FALSE)),"",VLOOKUP(E25,従業員情報!$B$6:$M$35,11,FALSE)) ->  | F30: =IF(ISERROR(VLOOKUP(F25,従業員情報!$B$6:$M$35,11,FALSE)),"",VLOOKUP(F25,従業員情報!$B$6:$M$35,11,FALSE)) -> 2018-09-30 | G30: =IF(ISERROR(VLOOKUP(G25,従業員情報!$B$6:$M$35,11,FALSE)),"",VLOOKUP(G25,従業員情報!$B$6:$M$35,11,FALSE)) ->  | H30: =IF(ISERROR(VLOOKUP(H25,従業員情報!$B$6:$M$35,11,FALSE)),"",VLOOKUP(H25,従業員情報!$B$6:$M$35,11,FALSE)) -> 2018-07-31 | I30: =IF(ISERROR(VLOOKUP(I25,従業員情報!$B$6:$M$35,11,FALSE)),"",VLOOKUP(I25,従業員情報!$B$6:$M$35,11,FALSE)) -> 2018-09-30 | J30: =IF(ISERROR(VLOOKUP(J25,従業員情報!$B$6:$M$35,11,FALSE)),"",VLOOKUP(J25,従業員情報!$B$6:$M$35,11,FALSE)) -> 2018-09-30 | K30: =IF(ISERROR(VLOOKUP(K25,従業員情報!$B$6:$M$35,11,FALSE)),"",VLOOKUP(K25,従業員情報!$B$6:$M$35,11,FALSE)) -> 2018-05-31 | L30: =IF(ISERROR(VLOOKUP(L25,従業員情報!$B$6:$M$35,11,FALSE)),"",VLOOKUP(L25,従業員情報!$B$6:$M$35,11,FALSE)) -> 2017-07-31 | M30: =IF(ISERROR(VLOOKUP(M25,従業員情報!$B$6:$M$35,11,FALSE)),"",VLOOKUP(M25,従業員情報!$B$6:$M$35,11,FALSE)) ->  | N30: =IF(ISERROR(VLOOKUP(N25,従業員情報!$B$6:$M$35,11,FALSE)),"",VLOOKUP(N25,従業員情報!$B$6:$M$35,11,FALSE)) ->  | O30: =IF(ISERROR(VLOOKUP(O25,従業員情報!$B$6:$M$35,11,FALSE)),"",VLOOKUP(O25,従業員情報!$B$6:$M$35,11,FALSE)) ->  | P30: =IF(ISERROR(VLOOKUP(P25,従業員情報!$B$6:$M$35,11,FALSE)),"",VLOOKUP(P25,従業員情報!$B$6:$M$35,11,FALSE)) ->  | Q30: =IF(ISERROR(VLOOKUP(Q25,従業員情報!$B$6:$M$35,11,FALSE)),"",VLOOKUP(Q25,従業員情報!$B$6:$M$35,11,FALSE)) ->  | R30: =IF(ISERROR(VLOOKUP(R25,従業員情報!$B$6:$M$35,11,FALSE)),"",VLOOKUP(R25,従業員情報!$B$6:$M$35,11,FALSE)) ->  | S30: =IF(ISERROR(VLOOKUP(S25,従業員情報!$B$6:$M$35,11,FALSE)),"",VLOOKUP(S25,従業員情報!$B$6:$M$35,11,FALSE)) ->  | T30: =IF(ISERROR(VLOOKUP(T25,従業員情報!$B$6:$M$35,11,FALSE)),"",VLOOKUP(T25,従業員情報!$B$6:$M$35,11,FALSE)) ->  | U30: =IF(ISERROR(VLOOKUP(U25,従業員情報!$B$6:$M$35,11,FALSE)),"",VLOOKUP(U25,従業員情報!$B$6:$M$35,11,FALSE)) ->  | V30: =IF(ISERROR(VLOOKUP(V25,従業員情報!$B$6:$M$35,11,FALSE)),"",VLOOKUP(V25,従業員情報!$B$6:$M$35,11,FALSE)) ->  | W30: =IF(ISERROR(VLOOKUP(W25,従業員情報!$B$6:$M$35,11,FALSE)),"",VLOOKUP(W25,従業員情報!$B$6:$M$35,11,FALSE)) ->  | X30: =IF(ISERROR(VLOOKUP(X25,従業員情報!$B$6:$M$35,11,FALSE)),"",VLOOKUP(X25,従業員情報!$B$6:$M$35,11,FALSE)) ->  | Y30: =IF(ISERROR(VLOOKUP(Y25,従業員情報!$B$6:$M$35,11,FALSE)),"",VLOOKUP(Y25,従業員情報!$B$6:$M$35,11,FALSE)) ->  | Z30: =IF(ISERROR(VLOOKUP(Z25,従業員情報!$B$6:$M$35,11,FALSE)),"",VLOOKUP(Z25,従業員情報!$B$6:$M$35,11,FALSE)) ->  | AA30: =IF(ISERROR(VLOOKUP(AA25,従業員情報!$B$6:$M$35,11,FALSE)),"",VLOOKUP(AA25,従業員情報!$B$6:$M$35,11,FALSE)) ->  | AB30: =IF(ISERROR(VLOOKUP(AB25,従業員情報!$B$6:$M$35,11,FALSE)),"",VLOOKUP(AB25,従業員情報!$B$6:$M$35,11,FALSE)) ->  | AC30: =IF(ISERROR(VLOOKUP(AC25,従業員情報!$B$6:$M$35,11,FALSE)),"",VLOOKUP(AC25,従業員情報!$B$6:$M$35,11,FALSE)) ->  | AD30: =IF(ISERROR(VLOOKUP(AD25,従業員情報!$B$6:$M$35,11,FALSE)),"",VLOOKUP(AD25,従業員情報!$B$6:$M$35,11,FALSE)) ->  | AE30: =IF(ISERROR(VLOOKUP(AE25,従業員情報!$B$6:$M$35,11,FALSE)),"",VLOOKUP(AE25,従業員情報!$B$6:$M$35,11,FALSE)) ->  | AF30: =IF(ISERROR(VLOOKUP(AF25,従業員情報!$B$6:$M$35,11,FALSE)),"",VLOOKUP(AF25,従業員情報!$B$6:$M$35,11,FALSE)) -> 
B31: 退職／継続雇用 | C31: =IF(VLOOKUP(C25,従業員情報!$B$6:$M$35,8,FALSE)="","",VLOOKUP(C25,従業員情報!$B$6:$M$35,8,FALSE)) ->  | D31: =IF(VLOOKUP(D25,従業員情報!$B$6:$M$35,8,FALSE)="","",VLOOKUP(D25,従業員情報!$B$6:$M$35,8,FALSE)) ->  | E31: =IF(VLOOKUP(E25,従業員情報!$B$6:$M$35,8,FALSE)="","",VLOOKUP(E25,従業員情報!$B$6:$M$35,8,FALSE)) ->  | F31: =IF(VLOOKUP(F25,従業員情報!$B$6:$M$35,8,FALSE)="","",VLOOKUP(F25,従業員情報!$B$6:$M$35,8,FALSE)) ->  | G31: =IF(VLOOKUP(G25,従業員情報!$B$6:$M$35,8,FALSE)="","",VLOOKUP(G25,従業員情報!$B$6:$M$35,8,FALSE)) ->  | H31: =IF(VLOOKUP(H25,従業員情報!$B$6:$M$35,8,FALSE)="","",VLOOKUP(H25,従業員情報!$B$6:$M$35,8,FALSE)) -> 退職 | I31: =IF(VLOOKUP(I25,従業員情報!$B$6:$M$35,8,FALSE)="","",VLOOKUP(I25,従業員情報!$B$6:$M$35,8,FALSE)) ->  | J31: =IF(VLOOKUP(J25,従業員情報!$B$6:$M$35,8,FALSE)="","",VLOOKUP(J25,従業員情報!$B$6:$M$35,8,FALSE)) ->  | K31: =IF(VLOOKUP(K25,従業員情報!$B$6:$M$35,8,FALSE)="","",VLOOKUP(K25,従業員情報!$B$6:$M$35,8,FALSE)) -> 継続雇用制度に移行 | L31: =IF(VLOOKUP(L25,従業員情報!$B$6:$M$35,8,FALSE)="","",VLOOKUP(L25,従業員情報!$B$6:$M$35,8,FALSE)) -> 継続雇用制度に移行 | M31: =IF(VLOOKUP(M25,従業員情報!$B$6:$M$35,8,FALSE)="","",VLOOKUP(M25,従業員情報!$B$6:$M$35,8,FALSE)) ->  | N31: =IF(VLOOKUP(N25,従業員情報!$B$6:$M$35,8,FALSE)="","",VLOOKUP(N25,従業員情報!$B$6:$M$35,8,FALSE)) ->  | O31: =IF(VLOOKUP(O25,従業員情報!$B$6:$M$35,8,FALSE)="","",VLOOKUP(O25,従業員情報!$B$6:$M$35,8,FALSE)) ->  | P31: =IF(VLOOKUP(P25,従業員情報!$B$6:$M$35,8,FALSE)="","",VLOOKUP(P25,従業員情報!$B$6:$M$35,8,FALSE)) ->  | Q31: =IF(VLOOKUP(Q25,従業員情報!$B$6:$M$35,8,FALSE)="","",VLOOKUP(Q25,従業員情報!$B$6:$M$35,8,FALSE)) ->  | R31: =IF(VLOOKUP(R25,従業員情報!$B$6:$M$35,8,FALSE)="","",VLOOKUP(R25,従業員情報!$B$6:$M$35,8,FALSE)) ->  | S31: =IF(VLOOKUP(S25,従業員情報!$B$6:$M$35,8,FALSE)="","",VLOOKUP(S25,従業員情報!$B$6:$M$35,8,FALSE)) ->  | T31: =IF(VLOOKUP(T25,従業員情報!$B$6:$M$35,8,FALSE)="","",VLOOKUP(T25,従業員情報!$B$6:$M$35,8,FALSE)) ->  | U31: =IF(VLOOKUP(U25,従業員情報!$B$6:$M$35,8,FALSE)="","",VLOOKUP(U25,従業員情報!$B$6:$M$35,8,FALSE)) ->  | V31: =IF(VLOOKUP(V25,従業員情報!$B$6:$M$35,8,FALSE)="","",VLOOKUP(V25,従業員情報!$B$6:$M$35,8,FALSE)) ->  | W31: =IF(VLOOKUP(W25,従業員情報!$B$6:$M$35,8,FALSE)="","",VLOOKUP(W25,従業員情報!$B$6:$M$35,8,FALSE)) ->  | X31: =IF(VLOOKUP(X25,従業員情報!$B$6:$M$35,8,FALSE)="","",VLOOKUP(X25,従業員情報!$B$6:$M$35,8,FALSE)) ->  | Y31: =IF(VLOOKUP(Y25,従業員情報!$B$6:$M$35,8,FALSE)="","",VLOOKUP(Y25,従業員情報!$B$6:$M$35,8,FALSE)) ->  | Z31: =IF(VLOOKUP(Z25,従業員情報!$B$6:$M$35,8,FALSE)="","",VLOOKUP(Z25,従業員情報!$B$6:$M$35,8,FALSE)) ->  | AA31: =IF(VLOOKUP(AA25,従業員情報!$B$6:$M$35,8,FALSE)="","",VLOOKUP(AA25,従業員情報!$B$6:$M$35,8,FALSE)) ->  | AB31: =IF(VLOOKUP(AB25,従業員情報!$B$6:$M$35,8,FALSE)="","",VLOOKUP(AB25,従業員情報!$B$6:$M$35,8,FALSE)) ->  | AC31: =IF(VLOOKUP(AC25,従業員情報!$B$6:$M$35,8,FALSE)="","",VLOOKUP(AC25,従業員情報!$B$6:$M$35,8,FALSE)) ->  | AD31: =IF(VLOOKUP(AD25,従業員情報!$B$6:$M$35,8,FALSE)="","",VLOOKUP(AD25,従業員情報!$B$6:$M$35,8,FALSE)) ->  | AE31: =IF(VLOOKUP(AE25,従業員情報!$B$6:$M$35,8,FALSE)="","",VLOOKUP(AE25,従業員情報!$B$6:$M$35,8,FALSE)) ->  | AF31: =IF(VLOOKUP(AF25,従業員情報!$B$6:$M$35,8,FALSE)="","",VLOOKUP(AF25,従業員情報!$B$6:$M$35,8,FALSE)) -> 
B32: 退職日 | C32: =IF(C27<>"該当","",IF(C31="退職",C30,$B$45+1)) ->  | D32: =IF(D27<>"該当","",IF(D31="退職",D30,$B$45+1)) ->  | F32: 2017-10-01 | G32: 2017-10-01 | H32: 2018-07-31 | I32: 2017-10-01 | J32: 2017-10-01 | K32: 2017-10-01 | L32: 2017-10-01
B33: 継続雇用開始 | C33: =IF(C27<>"該当","",IF(C31="継続雇用制度に移行",C30+1,$B$45+1)) ->  | D33: =IF(D27<>"該当","",IF(D31="継続雇用制度に移行",D30+1,$B$45+1)) ->  | F33: 2017-10-01 | G33: 2017-10-01 | H33: 2017-10-01 | I33: 2017-10-01 | J33: 2017-10-01 | K33: 2018-06-01 | L33: 2017-08-01
B34: =基本情報!G11 -> 2016-10-01 | F34: 220000 | G34: 30000 | H34: 230500 | K34: 172000 | L34: 165000 | AG34: =SUM(C34:AF34) -> 817500 | AH34: =COUNTIFS(C$28:AF$28,"該当",C34:AF34,">0",C$33:AF$33,">"&B34) -> 3
B35: =EOMONTH(B34,1) -> 2016-11-30 | F35: 232000 | G35: 50000 | H35: 237000 | K35: 168000 | L35: 183000 | AG35: =SUM(C35:AF35) -> 870000 | AH35: =COUNTIFS(C$28:AF$28,"該当",C35:AF35,">0",C$33:AF$33,">"&B35) -> 3
B36: =EOMONTH(B35,1) -> 2016-12-31 | F36: 235000 | G36: 40000 | H36: 230500 | K36: 152000 | L36: 156000 | AG36: 813500 | AH36: 3
B37: 2017-01-31 | F37: 222000 | G37: 30000 | H37: 280300 | K37: 193000 | L37: 156000 | AG37: 881300 | AH37: 3
B38: 2017-02-28 | F38: 238000 | G38: 10000 | H38: 290200 | J38: 168000 | K38: 168000 | L38: 172000 | AG38: 1046200 | AH38: 4
B39: 2017-03-31 | F39: 229000 | G39: 50000 | H39: 290500 | J39: 172000 | K39: 121000 | L39: 182000 | AG39: 1044500 | AH39: 4
B40: 2017-04-30 | F40: 228000 | G40: 60000 | H40: 280000 | J40: 168000 | K40: 158000 | L40: 152500 | AG40: 1046500 | AH40: 4
B41: 2017-05-31 | F41: 231000 | G41: 80000 | H41: 275600 | J41: 198000 | K41: 168000 | L41: 132000 | AG41: 1084600 | AH41: 4
B42: 2017-06-30 | F42: 240500 | G42: 20000 | J42: 172000 | K42: 189000 | L42: 85000 | AG42: 706500 | AH42: 3
B43: 2017-07-31 | F43: 259000 | G43: 50000 | J43: 182000 | K43: 192000 | L43: 93000 | AG43: 776000 | AH43: 3
B44: 2017-08-31 | F44: 232000 | G44: 60000 | J44: 168000 | K44: 179000 | L44: 54000 | AG44: 693000 | AH44: 3
B45: 2017-09-30 | F45: 219000 | G45: 80000 | J45: 199000 | K45: 189000 | AG45: 687000 | AH45: 3
B46: 賞与など（雇用保険加入者） | F46: 250000 | J46: 100000 | AG46: 350000
B47: 賞与など（継続雇用制度） | AG47: 0
B48: 賞与など（雇用保険非加入者） | G48: 20000 | AG48: 20000
B49: 合計 | C49: =SUM(C34:C48) -> 0 | D49: =SUM(D34:D48) -> 0 | E49: 0 | F49: 3035500 | G49: 580000 | H49: 2114600 | I49: 0 | J49: 1527000 | K49: 2049000 | L49: 1530500 | M49: 0 | N49: 0 | O49: 0 | P49: 0 | Q49: 0 | R49: 0 | S49: 0 | T49: 0 | U49: 0 | V49: 0 | W49: 0 | X49: 0 | Y49: 0 | Z49: 0 | AA49: 0 | AB49: 0 | AC49: 0 | AD49: 0 | AE49: 0 | AF49: 0 | AG49: =SUM(AG34:AG48) -> 10836600 | AH49: =SUM(AH34:AH48) -> 40
B50: うち継続雇用者の給与 | C50: =IF(C28="該当",SUM(C34:C45)+C46+C47,0) -> 0 | D50: =IF(D28="該当",SUM(D34:D45)+D46+D47,0) -> 0 | E50: 0 | F50: 3035500 | G50: 0 | H50: 2114600 | I50: 0 | J50: 1527000 | K50: 2049000 | L50: 0 | M50: 0 | N50: 0 | O50: 0 | P50: 0 | Q50: 0 | R50: 0 | S50: 0 | T50: 0 | U50: 0 | V50: 0 | W50: 0 | X50: 0 | Y50: 0 | Z50: 0 | AA50: 0 | AB50: 0 | AC50: 0 | AD50: 0 | AE50: 0 | AF50: 0 | AG50: =SUM(C50:AF50) -> 8726100
B51: うち継続雇用制度対象者の給与 | C51: =IF(C28="該当",SUMIFS(C34:C45,$B34:$B45,">="&C33)+C47,0) -> 0 | D51: =IF(D28="該当",SUMIFS(D34:D45,$B34:$B45,">="&D33)+D47,0) -> 0 | E51: 0 | F51: 0 | G51: 0 | H51: 0 | I51: 0 | J51: 0 | K51: 0 | L51: 0 | M51: 0 | N51: 0 | O51: 0 | P51: 0 | Q51: 0 | R51: 0 | S51: 0 | T51: 0 | U51: 0 | V51: 0 | W51: 0 | X51: 0 | Y51: 0 | Z51: 0 | AA51: 0 | AB51: 0 | AC51: 0 | AD51: 0 | AE51: 0 | AF51: 0 | AG51: =SUM(C51:AF51) -> 0
B53: ３、（適用年度）雇用者給与等支給額の入力
B54: Ｎｏ． | C54: 1 | D54: 2 | E54: 3 | F54: 4 | G54: 5 | H54: 6 | I54: 7 | J54: 8 | K54: 9 | L54: 10 | M54: 11 | N54: 12 | O54: 13 | P54: 14 | Q54: 15 | R54: 16 | S54: 17 | T54: 18 | U54: 19 | V54: 20 | W54: 21 | X54: 22 | Y54: 23 | Z54: 24 | AA54: 25 | AB54: 26 | AC54: 27 | AD54: 28 | AE54: 29 | AF54: 30 | AG54: 合計 | AH54: 月別継続 雇用者数
B55: 名前 | C55: =VLOOKUP(C54,従業員情報!$B$6:$C$35,2,FALSE) -> 今野 友夫 | D55: =VLOOKUP(D54,従業員情報!$B$6:$C$35,2,FALSE) -> 今野 朝子 | E55: =VLOOKUP(E54,従業員情報!$B$6:$C$35,2,FALSE) -> 今野 祥子 | F55: =VLOOKUP(F54,従業員情報!$B$6:$C$35,2,FALSE) -> 川西 めぐみ | G55: =VLOOKUP(G54,従業員情報!$B$6:$C$35,2,FALSE) -> 鳥居 雅之 | H55: =VLOOKUP(H54,従業員情報!$B$6:$C$35,2,FALSE) -> 絹延橋 みつ子 | I55: =VLOOKUP(I54,従業員情報!$B$6:$C$35,2,FALSE) -> 笹部 菜穂美 | J55: =VLOOKUP(J54,従業員情報!$B$6:$C$35,2,FALSE) -> 山下 典子 | K55: =VLOOKUP(K54,従業員情報!$B$6:$C$35,2,FALSE) -> 畦野 保則 | L55: =VLOOKUP(L54,従業員情報!$B$6:$C$35,2,FALSE) -> 滝山 隆一 | M55: =VLOOKUP(M54,従業員情報!$B$6:$C$35,2,FALSE) -> 0 | N55: =VLOOKUP(N54,従業員情報!$B$6:$C$35,2,FALSE) -> 0 | O55: =VLOOKUP(O54,従業員情報!$B$6:$C$35,2,FALSE) -> 0 | P55: =VLOOKUP(P54,従業員情報!$B$6:$C$35,2,FALSE) -> 0 | Q55: =VLOOKUP(Q54,従業員情報!$B$6:$C$35,2,FALSE) -> 0 | R55: =VLOOKUP(R54,従業員情報!$B$6:$C$35,2,FALSE) -> 0 | S55: =VLOOKUP(S54,従業員情報!$B$6:$C$35,2,FALSE) -> 0 | T55: =VLOOKUP(T54,従業員情報!$B$6:$C$35,2,FALSE) -> 0 | U55: =VLOOKUP(U54,従業員情報!$B$6:$C$35,2,FALSE) -> 0 | V55: =VLOOKUP(V54,従業員情報!$B$6:$C$35,2,FALSE) -> 0 | W55: =VLOOKUP(W54,従業員情報!$B$6:$C$35,2,FALSE) -> 0 | X55: =VLOOKUP(X54,従業員情報!$B$6:$C$35,2,FALSE) -> 0 | Y55: =VLOOKUP(Y54,従業員情報!$B$6:$C$35,2,FALSE) -> 0 | Z55: =VLOOKUP(Z54,従業員情報!$B$6:$C$35,2,FALSE) -> 0 | AA55: =VLOOKUP(AA54,従業員情報!$B$6:$C$35,2,FALSE) -> 0 | AB55: =VLOOKUP(AB54,従業員情報!$B$6:$C$35,2,FALSE) -> 0 | AC55: =VLOOKUP(AC54,従業員情報!$B$6:$C$35,2,FALSE) -> 0 | AD55: =VLOOKUP(AD54,従業員情報!$B$6:$C$35,2,FALSE) -> 0 | AE55: =VLOOKUP(AE54,従業員情報!$B$6:$C$35,2,FALSE) -> 0 | AF55: =VLOOKUP(AF54,従業員情報!$B$6:$C$35,2,FALSE) -> 0 | AG55: =SUM(C56:AF56) -> 0
B56: 国内雇用者 | C56: =IF(ISERROR(VLOOKUP(C54,従業員情報!$B$6:$H$35,4,FALSE)),"",VLOOKUP(C54,従業員情報!$B$6:$H$35,4,FALSE)) -> 0 | D56: =IF(ISERROR(VLOOKUP(D54,従業員情報!$B$6:$H$35,4,FALSE)),"",VLOOKUP(D54,従業員情報!$B$6:$H$35,4,FALSE)) -> 0 | E56: =IF(ISERROR(VLOOKUP(E54,従業員情報!$B$6:$H$35,4,FALSE)),"",VLOOKUP(E54,従業員情報!$B$6:$H$35,4,FALSE)) -> 0 | F56: =IF(ISERROR(VLOOKUP(F54,従業員情報!$B$6:$H$35,4,FALSE)),"",VLOOKUP(F54,従業員情報!$B$6:$H$35,4,FALSE)) -> 該当 | G56: =IF(ISERROR(VLOOKUP(G54,従業員情報!$B$6:$H$35,4,FALSE)),"",VLOOKUP(G54,従業員情報!$B$6:$H$35,4,FALSE)) -> 該当 | H56: =IF(ISERROR(VLOOKUP(H54,従業員情報!$B$6:$H$35,4,FALSE)),"",VLOOKUP(H54,従業員情報!$B$6:$H$35,4,FALSE)) -> 該当 | I56: =IF(ISERROR(VLOOKUP(I54,従業員情報!$B$6:$H$35,4,FALSE)),"",VLOOKUP(I54,従業員情報!$B$6:$H$35,4,FALSE)) -> 該当 | J56: =IF(ISERROR(VLOOKUP(J54,従業員情報!$B$6:$H$35,4,FALSE)),"",VLOOKUP(J54,従業員情報!$B$6:$H$35,4,FALSE)) -> 該当 | K56: =IF(ISERROR(VLOOKUP(K54,従業員情報!$B$6:$H$35,4,FALSE)),"",VLOOKUP(K54,従業員情報!$B$6:$H$35,4,FALSE)) -> 該当 | L56: =IF(ISERROR(VLOOKUP(L54,従業員情報!$B$6:$H$35,4,FALSE)),"",VLOOKUP(L54,従業員情報!$B$6:$H$35,4,FALSE)) -> 該当 | M56: =IF(ISERROR(VLOOKUP(M54,従業員情報!$B$6:$H$35,4,FALSE)),"",VLOOKUP(M54,従業員情報!$B$6:$H$35,4,FALSE)) -> 0 | N56: =IF(ISERROR(VLOOKUP(N54,従業員情報!$B$6:$H$35,4,FALSE)),"",VLOOKUP(N54,従業員情報!$B$6:$H$35,4,FALSE)) -> 0 | O56: =IF(ISERROR(VLOOKUP(O54,従業員情報!$B$6:$H$35,4,FALSE)),"",VLOOKUP(O54,従業員情報!$B$6:$H$35,4,FALSE)) -> 0 | P56: =IF(ISERROR(VLOOKUP(P54,従業員情報!$B$6:$H$35,4,FALSE)),"",VLOOKUP(P54,従業員情報!$B$6:$H$35,4,FALSE)) -> 0 | Q56: =IF(ISERROR(VLOOKUP(Q54,従業員情報!$B$6:$H$35,4,FALSE)),"",VLOOKUP(Q54,従業員情報!$B$6:$H$35,4,FALSE)) -> 0 | R56: =IF(ISERROR(VLOOKUP(R54,従業員情報!$B$6:$H$35,4,FALSE)),"",VLOOKUP(R54,従業員情報!$B$6:$H$35,4,FALSE)) -> 0 | S56: =IF(ISERROR(VLOOKUP(S54,従業員情報!$B$6:$H$35,4,FALSE)),"",VLOOKUP(S54,従業員情報!$B$6:$H$35,4,FALSE)) -> 0 | T56: =IF(ISERROR(VLOOKUP(T54,従業員情報!$B$6:$H$35,4,FALSE)),"",VLOOKUP(T54,従業員情報!$B$6:$H$35,4,FALSE)) -> 0 | U56: =IF(ISERROR(VLOOKUP(U54,従業員情報!$B$6:$H$35,4,FALSE)),"",VLOOKUP(U54,従業員情報!$B$6:$H$35,4,FALSE)) -> 0 | V56: =IF(ISERROR(VLOOKUP(V54,従業員情報!$B$6:$H$35,4,FALSE)),"",VLOOKUP(V54,従業員情報!$B$6:$H$35,4,FALSE)) -> 0 | W56: =IF(ISERROR(VLOOKUP(W54,従業員情報!$B$6:$H$35,4,FALSE)),"",VLOOKUP(W54,従業員情報!$B$6:$H$35,4,FALSE)) -> 0 | X56: =IF(ISERROR(VLOOKUP(X54,従業員情報!$B$6:$H$35,4,FALSE)),"",VLOOKUP(X54,従業員情報!$B$6:$H$35,4,FALSE)) -> 0 | Y56: =IF(ISERROR(VLOOKUP(Y54,従業員情報!$B$6:$H$35,4,FALSE)),"",VLOOKUP(Y54,従業員情報!$B$6:$H$35,4,FALSE)) -> 0 | Z56: =IF(ISERROR(VLOOKUP(Z54,従業員情報!$B$6:$H$35,4,FALSE)),"",VLOOKUP(Z54,従業員情報!$B$6:$H$35,4,FALSE)) -> 0 | AA56: =IF(ISERROR(VLOOKUP(AA54,従業員情報!$B$6:$H$35,4,FALSE)),"",VLOOKUP(AA54,従業員情報!$B$6:$H$35,4,FALSE)) -> 0 | AB56: =IF(ISERROR(VLOOKUP(AB54,従業員情報!$B$6:$H$35,4,FALSE)),"",VLOOKUP(AB54,従業員情報!$B$6:$H$35,4,FALSE)) -> 0 | AC56: =IF(ISERROR(VLOOKUP(AC54,従業員情報!$B$6:$H$35,4,FALSE)),"",VLOOKUP(AC54,従業員情報!$B$6:$H$35,4,FALSE)) -> 0 | AD56: =IF(ISERROR(VLOOKUP(AD54,従業員情報!$B$6:$H$35,4,FALSE)),"",VLOOKUP(AD54,従業員情報!$B$6:$H$35,4,FALSE)) -> 0 | AE56: =IF(ISERROR(VLOOKUP(AE54,従業員情報!$B$6:$H$35,4,FALSE)),"",VLOOKUP(AE54,従業員情報!$B$6:$H$35,4,FALSE)) -> 0 | AF56: =IF(ISERROR(VLOOKUP(AF54,従業員情報!$B$6:$H$35,4,FALSE)),"",VLOOKUP(AF54,従業員情報!$B$6:$H$35,4,FALSE)) -> 0
B57: 継続雇用者 | C57: =IF(ISERROR(VLOOKUP(C54,従業員情報!$B$6:$M$35,12,FALSE)),"",VLOOKUP(C54,従業員情報!$B$6:$M$35,12,FALSE)) ->  | D57: =IF(ISERROR(VLOOKUP(D54,従業員情報!$B$6:$M$35,12,FALSE)),"",VLOOKUP(D54,従業員情報!$B$6:$M$35,12,FALSE)) ->  | E57: =IF(ISERROR(VLOOKUP(E54,従業員情報!$B$6:$M$35,12,FALSE)),"",VLOOKUP(E54,従業員情報!$B$6:$M$35,12,FALSE)) ->  | F57: =IF(ISERROR(VLOOKUP(F54,従業員情報!$B$6:$M$35,12,FALSE)),"",VLOOKUP(F54,従業員情報!$B$6:$M$35,12,FALSE)) -> 該当 | G57: =IF(ISERROR(VLOOKUP(G54,従業員情報!$B$6:$M$35,12,FALSE)),"",VLOOKUP(G54,従業員情報!$B$6:$M$35,12,FALSE)) ->  | H57: =IF(ISERROR(VLOOKUP(H54,従業員情報!$B$6:$M$35,12,FALSE)),"",VLOOKUP(H54,従業員情報!$B$6:$M$35,12,FALSE)) -> 該当 | I57: =IF(ISERROR(VLOOKUP(I54,従業員情報!$B$6:$M$35,12,FALSE)),"",VLOOKUP(I54,従業員情報!$B$6:$M$35,12,FALSE)) ->  | J57: =IF(ISERROR(VLOOKUP(J54,従業員情報!$B$6:$M$35,12,FALSE)),"",VLOOKUP(J54,従業員情報!$B$6:$M$35,12,FALSE)) -> 該当 | K57: =IF(ISERROR(VLOOKUP(K54,従業員情報!$B$6:$M$35,12,FALSE)),"",VLOOKUP(K54,従業員情報!$B$6:$M$35,12,FALSE)) -> 該当 | L57: =IF(ISERROR(VLOOKUP(L54,従業員情報!$B$6:$M$35,12,FALSE)),"",VLOOKUP(L54,従業員情報!$B$6:$M$35,12,FALSE)) ->  | M57: =IF(ISERROR(VLOOKUP(M54,従業員情報!$B$6:$M$35,12,FALSE)),"",VLOOKUP(M54,従業員情報!$B$6:$M$35,12,FALSE)) ->  | N57: =IF(ISERROR(VLOOKUP(N54,従業員情報!$B$6:$M$35,12,FALSE)),"",VLOOKUP(N54,従業員情報!$B$6:$M$35,12,FALSE)) ->  | O57: =IF(ISERROR(VLOOKUP(O54,従業員情報!$B$6:$M$35,12,FALSE)),"",VLOOKUP(O54,従業員情報!$B$6:$M$35,12,FALSE)) ->  | P57: =IF(ISERROR(VLOOKUP(P54,従業員情報!$B$6:$M$35,12,FALSE)),"",VLOOKUP(P54,従業員情報!$B$6:$M$35,12,FALSE)) ->  | Q57: =IF(ISERROR(VLOOKUP(Q54,従業員情報!$B$6:$M$35,12,FALSE)),"",VLOOKUP(Q54,従業員情報!$B$6:$M$35,12,FALSE)) ->  | R57: =IF(ISERROR(VLOOKUP(R54,従業員情報!$B$6:$M$35,12,FALSE)),"",VLOOKUP(R54,従業員情報!$B$6:$M$35,12,FALSE)) ->  | S57: =IF(ISERROR(VLOOKUP(S54,従業員情報!$B$6:$M$35,12,FALSE)),"",VLOOKUP(S54,従業員情報!$B$6:$M$35,12,FALSE)) ->  | T57: =IF(ISERROR(VLOOKUP(T54,従業員情報!$B$6:$M$35,12,FALSE)),"",VLOOKUP(T54,従業員情報!$B$6:$M$35,12,FALSE)) ->  | U57: =IF(ISERROR(VLOOKUP(U54,従業員情報!$B$6:$M$35,12,FALSE)),"",VLOOKUP(U54,従業員情報!$B$6:$M$35,12,FALSE)) ->  | V57: =IF(ISERROR(VLOOKUP(V54,従業員情報!$B$6:$M$35,12,FALSE)),"",VLOOKUP(V54,従業員情報!$B$6:$M$35,12,FALSE)) ->  | W57: =IF(ISERROR(VLOOKUP(W54,従業員情報!$B$6:$M$35,12,FALSE)),"",VLOOKUP(W54,従業員情報!$B$6:$M$35,12,FALSE)) ->  | X57: =IF(ISERROR(VLOOKUP(X54,従業員情報!$B$6:$M$35,12,FALSE)),"",VLOOKUP(X54,従業員情報!$B$6:$M$35,12,FALSE)) ->  | Y57: =IF(ISERROR(VLOOKUP(Y54,従業員情報!$B$6:$M$35,12,FALSE)),"",VLOOKUP(Y54,従業員情報!$B$6:$M$35,12,FALSE)) ->  | Z57: =IF(ISERROR(VLOOKUP(Z54,従業員情報!$B$6:$M$35,12,FALSE)),"",VLOOKUP(Z54,従業員情報!$B$6:$M$35,12,FALSE)) ->  | AA57: =IF(ISERROR(VLOOKUP(AA54,従業員情報!$B$6:$M$35,12,FALSE)),"",VLOOKUP(AA54,従業員情報!$B$6:$M$35,12,FALSE)) ->  | AB57: =IF(ISERROR(VLOOKUP(AB54,従業員情報!$B$6:$M$35,12,FALSE)),"",VLOOKUP(AB54,従業員情報!$B$6:$M$35,12,FALSE)) ->  | AC57: =IF(ISERROR(VLOOKUP(AC54,従業員情報!$B$6:$M$35,12,FALSE)),"",VLOOKUP(AC54,従業員情報!$B$6:$M$35,12,FALSE)) ->  | AD57: =IF(ISERROR(VLOOKUP(AD54,従業員情報!$B$6:$M$35,12,FALSE)),"",VLOOKUP(AD54,従業員情報!$B$6:$M$35,12,FALSE)) ->  | AE57: =IF(ISERROR(VLOOKUP(AE54,従業員情報!$B$6:$M$35,12,FALSE)),"",VLOOKUP(AE54,従業員情報!$B$6:$M$35,12,FALSE)) ->  | AF57: =IF(ISERROR(VLOOKUP(AF54,従業員情報!$B$6:$M$35,12,FALSE)),"",VLOOKUP(AF54,従業員情報!$B$6:$M$35,12,FALSE)) -> 
B58: 被保険者開始月 | C58: =IF(ISERROR(VLOOKUP(C54,従業員情報!$B$6:$M$35,10,FALSE)),"",VLOOKUP(C54,従業員情報!$B$6:$M$35,10,FALSE)) ->  | D58: =IF(ISERROR(VLOOKUP(D54,従業員情報!$B$6:$M$35,10,FALSE)),"",VLOOKUP(D54,従業員情報!$B$6:$M$35,10,FALSE)) ->  | E58: =IF(ISERROR(VLOOKUP(E54,従業員情報!$B$6:$M$35,10,FALSE)),"",VLOOKUP(E54,従業員情報!$B$6:$M$35,10,FALSE)) ->  | F58: =IF(ISERROR(VLOOKUP(F54,従業員情報!$B$6:$M$35,10,FALSE)),"",VLOOKUP(F54,従業員情報!$B$6:$M$35,10,FALSE)) -> 2016-10-01 | G58: =IF(ISERROR(VLOOKUP(G54,従業員情報!$B$6:$M$35,10,FALSE)),"",VLOOKUP(G54,従業員情報!$B$6:$M$35,10,FALSE)) ->  | H58: =IF(ISERROR(VLOOKUP(H54,従業員情報!$B$6:$M$35,10,FALSE)),"",VLOOKUP(H54,従業員情報!$B$6:$M$35,10,FALSE)) -> 2016-10-01 | I58: =IF(ISERROR(VLOOKUP(I54,従業員情報!$B$6:$M$35,10,FALSE)),"",VLOOKUP(I54,従業員情報!$B$6:$M$35,10,FALSE)) -> 2018-04-30 | J58: =IF(ISERROR(VLOOKUP(J54,従業員情報!$B$6:$M$35,10,FALSE)),"",VLOOKUP(J54,従業員情報!$B$6:$M$35,10,FALSE)) -> 2016-11-30 | K58: =IF(ISERROR(VLOOKUP(K54,従業員情報!$B$6:$M$35,10,FALSE)),"",VLOOKUP(K54,従業員情報!$B$6:$M$35,10,FALSE)) -> 2016-10-01 | L58: =IF(ISERROR(VLOOKUP(L54,従業員情報!$B$6:$M$35,10,FALSE)),"",VLOOKUP(L54,従業員情報!$B$6:$M$35,10,FALSE)) -> 2016-10-01 | M58: =IF(ISERROR(VLOOKUP(M54,従業員情報!$B$6:$M$35,10,FALSE)),"",VLOOKUP(M54,従業員情報!$B$6:$M$35,10,FALSE)) ->  | N58: =IF(ISERROR(VLOOKUP(N54,従業員情報!$B$6:$M$35,10,FALSE)),"",VLOOKUP(N54,従業員情報!$B$6:$M$35,10,FALSE)) ->  | O58: =IF(ISERROR(VLOOKUP(O54,従業員情報!$B$6:$M$35,10,FALSE)),"",VLOOKUP(O54,従業員情報!$B$6:$M$35,10,FALSE)) ->  | P58: =IF(ISERROR(VLOOKUP(P54,従業員情報!$B$6:$M$35,10,FALSE)),"",VLOOKUP(P54,従業員情報!$B$6:$M$35,10,FALSE)) ->  | Q58: =IF(ISERROR(VLOOKUP(Q54,従業員情報!$B$6:$M$35,10,FALSE)),"",VLOOKUP(Q54,従業員情報!$B$6:$M$35,10,FALSE)) ->  | R58: =IF(ISERROR(VLOOKUP(R54,従業員情報!$B$6:$M$35,10,FALSE)),"",VLOOKUP(R54,従業員情報!$B$6:$M$35,10,FALSE)) ->  | S58: =IF(ISERROR(VLOOKUP(S54,従業員情報!$B$6:$M$35,10,FALSE)),"",VLOOKUP(S54,従業員情報!$B$6:$M$35,10,FALSE)) ->  | T58: =IF(ISERROR(VLOOKUP(T54,従業員情報!$B$6:$M$35,10,FALSE)),"",VLOOKUP(T54,従業員情報!$B$6:$M$35,10,FALSE)) ->  | U58: =IF(ISERROR(VLOOKUP(U54,従業員情報!$B$6:$M$35,10,FALSE)),"",VLOOKUP(U54,従業員情報!$B$6:$M$35,10,FALSE)) ->  | V58: =IF(ISERROR(VLOOKUP(V54,従業員情報!$B$6:$M$35,10,FALSE)),"",VLOOKUP(V54,従業員情報!$B$6:$M$35,10,FALSE)) ->  | W58: =IF(ISERROR(VLOOKUP(W54,従業員情報!$B$6:$M$35,10,FALSE)),"",VLOOKUP(W54,従業員情報!$B$6:$M$35,10,FALSE)) ->  | X58: =IF(ISERROR(VLOOKUP(X54,従業員情報!$B$6:$M$35,10,FALSE)),"",VLOOKUP(X54,従業員情報!$B$6:$M$35,10,FALSE)) ->  | Y58: =IF(ISERROR(VLOOKUP(Y54,従業員情報!$B$6:$M$35,10,FALSE)),"",VLOOKUP(Y54,従業員情報!$B$6:$M$35,10,FALSE)) ->  | Z58: =IF(ISERROR(VLOOKUP(Z54,従業員情報!$B$6:$M$35,10,FALSE)),"",VLOOKUP(Z54,従業員情報!$B$6:$M$35,10,FALSE)) ->  | AA58: =IF(ISERROR(VLOOKUP(AA54,従業員情報!$B$6:$M$35,10,FALSE)),"",VLOOKUP(AA54,従業員情報!$B$6:$M$35,10,FALSE)) ->  | AB58: =IF(ISERROR(VLOOKUP(AB54,従業員情報!$B$6:$M$35,10,FALSE)),"",VLOOKUP(AB54,従業員情報!$B$6:$M$35,10,FALSE)) ->  | AC58: =IF(ISERROR(VLOOKUP(AC54,従業員情報!$B$6:$M$35,10,FALSE)),"",VLOOKUP(AC54,従業員情報!$B$6:$M$35,10,FALSE)) ->  | AD58: =IF(ISERROR(VLOOKUP(AD54,従業員情報!$B$6:$M$35,10,FALSE)),"",VLOOKUP(AD54,従業員情報!$B$6:$M$35,10,FALSE)) ->  | AE58: =IF(ISERROR(VLOOKUP(AE54,従業員情報!$B$6:$M$35,10,FALSE)),"",VLOOKUP(AE54,従業員情報!$B$6:$M$35,10,FALSE)) ->  | AF58: =IF(ISERROR(VLOOKUP(AF54,従業員情報!$B$6:$M$35,10,FALSE)),"",VLOOKUP(AF54,従業員情報!$B$6:$M$35,10,FALSE)) -> 
B59: 被保険者終了月 | C59: =IF(ISERROR(VLOOKUP(C54,従業員情報!$B$6:$M$35,11,FALSE)),"",VLOOKUP(C54,従業員情報!$B$6:$M$35,11,FALSE)) ->  | D59: =IF(ISERROR(VLOOKUP(D54,従業員情報!$B$6:$M$35,11,FALSE)),"",VLOOKUP(D54,従業員情報!$B$6:$M$35,11,FALSE)) ->  | E59: =IF(ISERROR(VLOOKUP(E54,従業員情報!$B$6:$M$35,11,FALSE)),"",VLOOKUP(E54,従業員情報!$B$6:$M$35,11,FALSE)) ->  | F59: =IF(ISERROR(VLOOKUP(F54,従業員情報!$B$6:$M$35,11,FALSE)),"",VLOOKUP(F54,従業員情報!$B$6:$M$35,11,FALSE)) -> 2018-09-30 | G59: =IF(ISERROR(VLOOKUP(G54,従業員情報!$B$6:$M$35,11,FALSE)),"",VLOOKUP(G54,従業員情報!$B$6:$M$35,11,FALSE)) ->  | H59: =IF(ISERROR(VLOOKUP(H54,従業員情報!$B$6:$M$35,11,FALSE)),"",VLOOKUP(H54,従業員情報!$B$6:$M$35,11,FALSE)) -> 2018-07-31 | I59: =IF(ISERROR(VLOOKUP(I54,従業員情報!$B$6:$M$35,11,FALSE)),"",VLOOKUP(I54,従業員情報!$B$6:$M$35,11,FALSE)) -> 2018-09-30 | J59: =IF(ISERROR(VLOOKUP(J54,従業員情報!$B$6:$M$35,11,FALSE)),"",VLOOKUP(J54,従業員情報!$B$6:$M$35,11,FALSE)) -> 2018-09-30 | K59: =IF(ISERROR(VLOOKUP(K54,従業員情報!$B$6:$M$35,11,FALSE)),"",VLOOKUP(K54,従業員情報!$B$6:$M$35,11,FALSE)) -> 2018-05-31 | L59: =IF(ISERROR(VLOOKUP(L54,従業員情報!$B$6:$M$35,11,FALSE)),"",VLOOKUP(L54,従業員情報!$B$6:$M$35,11,FALSE)) -> 2017-07-31 | M59: =IF(ISERROR(VLOOKUP(M54,従業員情報!$B$6:$M$35,11,FALSE)),"",VLOOKUP(M54,従業員情報!$B$6:$M$35,11,FALSE)) ->  | N59: =IF(ISERROR(VLOOKUP(N54,従業員情報!$B$6:$M$35,11,FALSE)),"",VLOOKUP(N54,従業員情報!$B$6:$M$35,11,FALSE)) ->  | O59: =IF(ISERROR(VLOOKUP(O54,従業員情報!$B$6:$M$35,11,FALSE)),"",VLOOKUP(O54,従業員情報!$B$6:$M$35,11,FALSE)) ->  | P59: =IF(ISERROR(VLOOKUP(P54,従業員情報!$B$6:$M$35,11,FALSE)),"",VLOOKUP(P54,従業員情報!$B$6:$M$35,11,FALSE)) ->  | Q59: =IF(ISERROR(VLOOKUP(Q54,従業員情報!$B$6:$M$35,11,FALSE)),"",VLOOKUP(Q54,従業員情報!$B$6:$M$35,11,FALSE)) ->  | R59: =IF(ISERROR(VLOOKUP(R54,従業員情報!$B$6:$M$35,11,FALSE)),"",VLOOKUP(R54,従業員情報!$B$6:$M$35,11,FALSE)) ->  | S59: =IF(ISERROR(VLOOKUP(S54,従業員情報!$B$6:$M$35,11,FALSE)),"",VLOOKUP(S54,従業員情報!$B$6:$M$35,11,FALSE)) ->  | T59: =IF(ISERROR(VLOOKUP(T54,従業員情報!$B$6:$M$35,11,FALSE)),"",VLOOKUP(T54,従業員情報!$B$6:$M$35,11,FALSE)) ->  | U59: =IF(ISERROR(VLOOKUP(U54,従業員情報!$B$6:$M$35,11,FALSE)),"",VLOOKUP(U54,従業員情報!$B$6:$M$35,11,FALSE)) ->  | V59: =IF(ISERROR(VLOOKUP(V54,従業員情報!$B$6:$M$35,11,FALSE)),"",VLOOKUP(V54,従業員情報!$B$6:$M$35,11,FALSE)) ->  | W59: =IF(ISERROR(VLOOKUP(W54,従業員情報!$B$6:$M$35,11,FALSE)),"",VLOOKUP(W54,従業員情報!$B$6:$M$35,11,FALSE)) ->  | X59: =IF(ISERROR(VLOOKUP(X54,従業員情報!$B$6:$M$35,11,FALSE)),"",VLOOKUP(X54,従業員情報!$B$6:$M$35,11,FALSE)) ->  | Y59: =IF(ISERROR(VLOOKUP(Y54,従業員情報!$B$6:$M$35,11,FALSE)),"",VLOOKUP(Y54,従業員情報!$B$6:$M$35,11,FALSE)) ->  | Z59: =IF(ISERROR(VLOOKUP(Z54,従業員情報!$B$6:$M$35,11,FALSE)),"",VLOOKUP(Z54,従業員情報!$B$6:$M$35,11,FALSE)) ->  | AA59: =IF(ISERROR(VLOOKUP(AA54,従業員情報!$B$6:$M$35,11,FALSE)),"",VLOOKUP(AA54,従業員情報!$B$6:$M$35,11,FALSE)) ->  | AB59: =IF(ISERROR(VLOOKUP(AB54,従業員情報!$B$6:$M$35,11,FALSE)),"",VLOOKUP(AB54,従業員情報!$B$6:$M$35,11,FALSE)) ->  | AC59: =IF(ISERROR(VLOOKUP(AC54,従業員情報!$B$6:$M$35,11,FALSE)),"",VLOOKUP(AC54,従業員情報!$B$6:$M$35,11,FALSE)) ->  | AD59: =IF(ISERROR(VLOOKUP(AD54,従業員情報!$B$6:$M$35,11,FALSE)),"",VLOOKUP(AD54,従業員情報!$B$6:$M$35,11,FALSE)) ->  | AE59: =IF(ISERROR(VLOOKUP(AE54,従業員情報!$B$6:$M$35,11,FALSE)),"",VLOOKUP(AE54,従業員情報!$B$6:$M$35,11,FALSE)) ->  | AF59: =IF(ISERROR(VLOOKUP(AF54,従業員情報!$B$6:$M$35,11,FALSE)),"",VLOOKUP(AF54,従業員情報!$B$6:$M$35,11,FALSE)) -> 
B60: 退職／継続雇用 | C60: =IF(VLOOKUP(C54,従業員情報!$B$6:$M$35,8,FALSE)="","",VLOOKUP(C54,従業員情報!$B$6:$M$35,8,FALSE)) ->  | D60: =IF(VLOOKUP(D54,従業員情報!$B$6:$M$35,8,FALSE)="","",VLOOKUP(D54,従業員情報!$B$6:$M$35,8,FALSE)) ->  | E60: =IF(VLOOKUP(E54,従業員情報!$B$6:$M$35,8,FALSE)="","",VLOOKUP(E54,従業員情報!$B$6:$M$35,8,FALSE)) ->  | F60: =IF(VLOOKUP(F54,従業員情報!$B$6:$M$35,8,FALSE)="","",VLOOKUP(F54,従業員情報!$B$6:$M$35,8,FALSE)) ->  | G60: =IF(VLOOKUP(G54,従業員情報!$B$6:$M$35,8,FALSE)="","",VLOOKUP(G54,従業員情報!$B$6:$M$35,8,FALSE)) ->  | H60: =IF(VLOOKUP(H54,従業員情報!$B$6:$M$35,8,FALSE)="","",VLOOKUP(H54,従業員情報!$B$6:$M$35,8,FALSE)) -> 退職 | I60: =IF(VLOOKUP(I54,従業員情報!$B$6:$M$35,8,FALSE)="","",VLOOKUP(I54,従業員情報!$B$6:$M$35,8,FALSE)) ->  | J60: =IF(VLOOKUP(J54,従業員情報!$B$6:$M$35,8,FALSE)="","",VLOOKUP(J54,従業員情報!$B$6:$M$35,8,FALSE)) ->  | K60: =IF(VLOOKUP(K54,従業員情報!$B$6:$M$35,8,FALSE)="","",VLOOKUP(K54,従業員情報!$B$6:$M$35,8,FALSE)) -> 継続雇用制度に移行 | L60: =IF(VLOOKUP(L54,従業員情報!$B$6:$M$35,8,FALSE)="","",VLOOKUP(L54,従業員情報!$B$6:$M$35,8,FALSE)) -> 継続雇用制度に移行 | M60: =IF(VLOOKUP(M54,従業員情報!$B$6:$M$35,8,FALSE)="","",VLOOKUP(M54,従業員情報!$B$6:$M$35,8,FALSE)) ->  | N60: =IF(VLOOKUP(N54,従業員情報!$B$6:$M$35,8,FALSE)="","",VLOOKUP(N54,従業員情報!$B$6:$M$35,8,FALSE)) ->  | O60: =IF(VLOOKUP(O54,従業員情報!$B$6:$M$35,8,FALSE)="","",VLOOKUP(O54,従業員情報!$B$6:$M$35,8,FALSE)) ->  | P60: =IF(VLOOKUP(P54,従業員情報!$B$6:$M$35,8,FALSE)="","",VLOOKUP(P54,従業員情報!$B$6:$M$35,8,FALSE)) ->  | Q60: =IF(VLOOKUP(Q54,従業員情報!$B$6:$M$35,8,FALSE)="","",VLOOKUP(Q54,従業員情報!$B$6:$M$35,8,FALSE)) ->  | R60: =IF(VLOOKUP(R54,従業員情報!$B$6:$M$35,8,FALSE)="","",VLOOKUP(R54,従業員情報!$B$6:$M$35,8,FALSE)) ->  | S60: =IF(VLOOKUP(S54,従業員情報!$B$6:$M$35,8,FALSE)="","",VLOOKUP(S54,従業員情報!$B$6:$M$35,8,FALSE)) ->  | T60: =IF(VLOOKUP(T54,従業員情報!$B$6:$M$35,8,FALSE)="","",VLOOKUP(T54,従業員情報!$B$6:$M$35,8,FALSE)) ->  | U60: =IF(VLOOKUP(U54,従業員情報!$B$6:$M$35,8,FALSE)="","",VLOOKUP(U54,従業員情報!$B$6:$M$35,8,FALSE)) ->  | V60: =IF(VLOOKUP(V54,従業員情報!$B$6:$M$35,8,FALSE)="","",VLOOKUP(V54,従業員情報!$B$6:$M$35,8,FALSE)) ->  | W60: =IF(VLOOKUP(W54,従業員情報!$B$6:$M$35,8,FALSE)="","",VLOOKUP(W54,従業員情報!$B$6:$M$35,8,FALSE)) ->  | X60: =IF(VLOOKUP(X54,従業員情報!$B$6:$M$35,8,FALSE)="","",VLOOKUP(X54,従業員情報!$B$6:$M$35,8,FALSE)) ->  | Y60: =IF(VLOOKUP(Y54,従業員情報!$B$6:$M$35,8,FALSE)="","",VLOOKUP(Y54,従業員情報!$B$6:$M$35,8,FALSE)) ->  | Z60: =IF(VLOOKUP(Z54,従業員情報!$B$6:$M$35,8,FALSE)="","",VLOOKUP(Z54,従業員情報!$B$6:$M$35,8,FALSE)) ->  | AA60: =IF(VLOOKUP(AA54,従業員情報!$B$6:$M$35,8,FALSE)="","",VLOOKUP(AA54,従業員情報!$B$6:$M$35,8,FALSE)) ->  | AB60: =IF(VLOOKUP(AB54,従業員情報!$B$6:$M$35,8,FALSE)="","",VLOOKUP(AB54,従業員情報!$B$6:$M$35,8,FALSE)) ->  | AC60: =IF(VLOOKUP(AC54,従業員情報!$B$6:$M$35,8,FALSE)="","",VLOOKUP(AC54,従業員情報!$B$6:$M$35,8,FALSE)) ->  | AD60: =IF(VLOOKUP(AD54,従業員情報!$B$6:$M$35,8,FALSE)="","",VLOOKUP(AD54,従業員情報!$B$6:$M$35,8,FALSE)) ->  | AE60: =IF(VLOOKUP(AE54,従業員情報!$B$6:$M$35,8,FALSE)="","",VLOOKUP(AE54,従業員情報!$B$6:$M$35,8,FALSE)) ->  | AF60: =IF(VLOOKUP(AF54,従業員情報!$B$6:$M$35,8,FALSE)="","",VLOOKUP(AF54,従業員情報!$B$6:$M$35,8,FALSE)) -> 
B61: 退職日 | C61: =IF(C56<>"該当","",IF(C60="退職",C59,$B$74+1)) ->  | D61: =IF(D56<>"該当","",IF(D60="退職",D59,$B$74+1)) ->  | F61: 2018-10-01 | G61: 2018-10-01 | H61: 2018-07-31 | I61: 2018-10-01 | J61: 2018-10-01 | K61: 2018-10-01 | L61: 2018-10-01
B62: 継続雇用開始 | C62: =IF(C56<>"該当","",IF(C60="継続雇用制度に移行",C59+1,$B$74+1)) ->  | D62: =IF(D56<>"該当","",IF(D60="継続雇用制度に移行",D59+1,$B$74+1)) ->  | F62: 2018-10-01 | G62: 2018-10-01 | H62: 2018-10-01 | I62: 2018-10-01 | J62: 2018-10-01 | K62: 2018-06-01 | L62: 2017-08-01
B63: =基本情報!D11 -> 2017-10-01 | F63: 383000 | G63: 20000 | J63: 308000 | K63: 172000 | AG63: =SUM(C63:AF63) -> 883000 | AH63: =COUNTIFS(C$57:AF$57,"該当",C63:AF63,">0",C$62:AF$62,">"&B63) -> 3
B64: =EOMONTH(B63,1) -> 2017-11-30 | F64: 361400 | G64: 60000 | J64: 293000 | K64: 168000 | AG64: =SUM(C64:AF64) -> 882400 | AH64: =COUNTIFS(C$57:AF$57,"該当",C64:AF64,">0",C$62:AF$62,">"&B64) -> 3
B65: =EOMONTH(B64,1) -> 2017-12-31 | F65: 354500 | G65: 10000 | J65: 298000 | K65: 192000 | AG65: 854500 | AH65: 3
B66: 2018-01-31 | F66: 350500 | G66: 70000 | J66: 288000 | K66: 193000 | AG66: 901500 | AH66: 3
B67: 2018-02-28 | F67: 368200 | G67: 20000 | J67: 292000 | K67: 168000 | AG67: 848200 | AH67: 3
B68: 2018-03-31 | F68: 330200 | G68: 30000 | J68: 292000 | K68: 201000 | AG68: 853200 | AH68: 3
B69: 2018-04-30 | F69: 389000 | G69: 80000 | I69: 280200 | J69: 306000 | K69: 188000 | AG69: 1243200 | AH69: 3
B70: 2018-05-31 | F70: 365000 | G70: 70000 | I70: 380200 | J70: 300000 | K70: 168000 | AG70: 1283200 | AH70: 3
B71: 2018-06-30 | F71: 420800 | G71: 30000 | I71: 330500 | J71: 295000 | K71: 189000 | AG71: 1265300 | AH71: 2
B72: 2018-07-31 | F72: 362000 | G72: 60000 | I72: 220300 | J72: 285000 | K72: 80000 | AG72: 1007300 | AH72: 2
B73: 2018-08-31 | F73: 456000 | G73: 40000 | I73: 240800 | J73: 299000 | K73: 79000 | AG73: 1114800 | AH73: 2
B74: 2018-09-30 | F74: 393000 | G74: 90000 | I74: 220300 | J74: 318000 | K74: 89000 | AG74: 1110300 | AH74: 2
B75: 賞与など（雇用保険加入者） | F75: 500000 | I75: 200000 | J75: 400000 | AG75: 1100000
B76: 賞与など（継続雇用制度） | K76: 20000 | AG76: 20000
B77: 賞与など（雇用保険非加入者） | G77: 20000 | AG77: 20000
B78: 合計 | C78: =SUM(C63:C77) -> 0 | D78: =SUM(D63:D77) -> 0 | E78: 0 | F78: 5033600 | G78: 600000 | H78: 0 | I78: 1872300 | J78: 3974000 | K78: 1907000 | L78: 0 | M78: 0 | N78: 0 | O78: 0 | P78: 0 | Q78: 0 | R78: 0 | S78: 0 | T78: 0 | U78: 0 | V78: 0 | W78: 0 | X78: 0 | Y78: 0 | Z78: 0 | AA78: 0 | AB78: 0 | AC78: 0 | AD78: 0 | AE78: 0 | AF78: 0 | AG78: =SUM(AG63:AG77) -> 13386900 | AH78: =SUM(AH63:AH77) -> 32
B79: うち継続雇用者の給与 | C79: =IF(C57="該当",SUM(C63:C74)+C75+C76,0) -> 0 | D79: =IF(D57="該当",SUM(D63:D74)+D75+D76,0) -> 0 | E79: 0 | F79: 5033600 | G79: 0 | H79: 0 | I79: 0 | J79: 3974000 | K79: 1907000 | L79: 0 | M79: 0 | N79: 0 | O79: 0 | P79: 0 | Q79: 0 | R79: 0 | S79: 0 | T79: 0 | U79: 0 | V79: 0 | W79: 0 | X79: 0 | Y79: 0 | Z79: 0 | AA79: 0 | AB79: 0 | AC79: 0 | AD79: 0 | AE79: 0 | AF79: 0 | AG79: =SUM(C79:AF79) -> 10914600
B80: うち継続雇用制度対象者の給与 | C80: =IF(C57="該当",SUMIFS(C63:C74,$B63:$B74,">="&C62)+C76,0) -> 0 | D80: =IF(D57="該当",SUMIFS(D63:D74,$B63:$B74,">="&D62)+D76,0) -> 0 | E80: 0 | F80: 0 | G80: 0 | H80: 0 | I80: 0 | J80: 0 | K80: 457000 | L80: 0 | M80: 0 | N80: 0 | O80: 0 | P80: 0 | Q80: 0 | R80: 0 | S80: 0 | T80: 0 | U80: 0 | V80: 0 | W80: 0 | X80: 0 | Y80: 0 | Z80: 0 | AA80: 0 | AB80: 0 | AC80: 0 | AD80: 0 | AE80: 0 | AF80: 0 | AG80: =SUM(C80:AF80) -> 457000

Sheet 別表６（２３）
C2: 雇用者給与等支給額が増加した場合の法人税額 の特別控除に関する明細書 | X2: 事 業 年 度 | AB2: =基本情報!D11 -> 2017-10-01 | AG2: 法人名 | AK2: =基本情報!C7 -> 株式会社今野デザイン | AT2: 別表六（二十三）
AB3: =基本情報!C11 -> 2018-09-30 | AZ3: 中小企業者等に
C4: 調整前雇用者給与等 | D4: 支給増加額の計算 | E4: 雇用者給与等支給額 | P4: 1 | V4: 0 | X4: 円 | Z4: 調整前税額控除限度額 | AK4: 12 | AN4: 0 | AS4: 円 | AZ4: =基本情報!C9 -> 該当 | BB4: =IF(AZ4="該当",1,0) -> 1
Q5: =T48 -> 13386900 | Z5: (11)×10/100 ((6)≦(7)の場合は0) | AL5: =IF(Q19<=Q21,0,ROUNDDOWN(Q30*10/100,0)) -> 136935 | AZ5: =基本情報!C13 -> 平成２９年４月以降開始 | BB5: =IF(AZ5="平成２９年４月以降開始",1,0) -> 1
E6: 基準雇用者給与等支給額 | P6: 2 | V6: 0 | Z6: 税額控除加算基準額 | AK6: 13
I7: (26) | Q7: =IF(ISERROR(AJ36),0,AJ36) -> 12017550 | Y7: 法人税額の特別控除額の計算 | Z7: (((1)-(5))と(11)のうち少ない金額） | AL7: =IF(MIN(Q5-Q15,Q30)<0,0,MIN(Q5-Q15,Q30)) -> 1369350 | AZ7: H29年3月以前 | BA7: H29年4月以後
E8: 調整前雇用者給与等支給増加額 | P8: 3 | Z8: 以外の法人 中小企業者等 | AB8: 税額控除加算額 | AK8: 14 | AT8: 平二十九・四・一以後終了事業年度分 | BA8: =ROUNDDOWN(AL7*2/100,0) -> 27387
E9: (1)－(2) | Q9: =IF(Q5-Q7<0,0,Q5-Q7) -> 1369350 | AC9: (13)× | AF9: 2 | AL9: =IF(BB4=1,"",IF(BB5=1,BA8,AZ8)) -> 
E10: (マイナスの場合は0) | AF10: 100
C11: 増加促進割合 | P11: 4 | AB11: 税額控除限度額 | AK11: 15 | AZ11: =IF(Q12<0.04,0,IF(Q5<Q15,0,AL5)) -> 136935 | BA11: =IF(Q12<0.05,0,IF(OR(Q5<Q15,Q26<0.02,Q21=0),0,AL5+AL9)) -> 
Q12: =IF(ISERROR(ROUNDDOWN(Q9/Q7,3)),0,ROUNDDOWN(Q9/Q7,3)) -> 0.113 | AB12: (12)又は((12+(14)) | AL12: =IF(BB4=1,"",IF(BB5=1,BA11,AZ11)) -> 
C13: (3)/(2) | AB13: ((1)<(5)の場合又は(9)<0.02若しくは (7)=0の場合は0)
C14: 比較雇用者給与等支給額 | P14: 5 | Z14: 中小企業者等 | AB14: 税額控除加算額 | AK14: 16 | BA14: =IF(OR(Q26<0.02,Q21=0),0,ROUNDDOWN(AL7*12/100,0)) -> 164322
G15: (30) | Q15: =AJ42 -> 10836600 | AC15: (13)× | AF15: 12 | AL15: =IF(BB4=0,"",IF(BB5=1,BA14,AZ14)) -> 164322
AF16: 100
AB17: ((9)<0.02又は(7)=0の場合は0)
C18: 平 均 給 与 等 支 給 額 | P18: 6 | V18: 0 | AB18: 税額控除限度額 | AK18: 17 | AZ18: =IF(Q12<0.03,0,IF(Q5<Q15,0,AL5)) -> 136935 | BA18: =IF(Q12<0.03,0,IF(Q5<Q15,0,AL5+AL15)) -> 301257
G19: (36の①) | Q19: =T58 -> 326800 | AB19: (12)又は((12+(16)) ((1)<(5)の場合は0) | AL19: =IF(BB4=0,"",IF(BB5=1,BA18,AZ18)) -> 301257
C20: 比較平均給与等支給額 | P20: 7 | Z20: 調整前法人税額 | AK20: 18
G21: (36の②) | Q21: =AH58 -> 218152 | Z21: (別表一(一)｢2｣、別表一(二)｢2｣、別表一 (三)｢2｣又は別表一の三｢2｣若しくは｢13｣) | AL21: 2000000
C22: 平均給与等支給増加額 | P22: 8 | Z22: 当期税額基準額 | AK22: 19
C23: (6)－(7) | Q23: =IF(Q19-Q21<0,0,Q19-Q21) -> 108648 | AB23: (11)× | AE23: =IF(BB4=1,20,10) -> 20 | AL23: =ROUND(AL21*AE23/AE24,0) -> 400000
C24: (マイナスの場合は0) | AE24: 100
C25: 平均給与等支給増加割合 | P25: 9 | Z25: 当期税額控除可能額 | AK25: 20
C26: (8)/(7) | Q26: =IF(Q21=0,1,ROUNDDOWN(Q23/Q21,3)) -> 0.498 | Z26: (((15)又は(17))と(19)のうち少ない金額） | AL26: =IF(BB4=1,MIN(AL19,AL23),MIN(AL12,AL23)) -> 301257
C27: 雇用者給与等支給増加重複控除 | P27: 10 | Z27: 法人税額超過構成額 | AK27: 21
C28: (別表六(二十三)付表｢7｣) | Z28: （別表六(二十七)｢7の㉔｣）
C29: 雇用者給与等支給増加額 | P29: 11 | Z29: 法人税額の特別控除額 | AK29: 22
C30: (3)－(10) （マイナスの場合は０） | Q30: =IF(Q9-Q27<0,0,Q9-Q27) -> 1369350 | Z30: (20)－(21) | AL30: =AL26-AL27 -> 301257
H31: 基準雇用者給与等支給額の計算
C32: 基準事業年度又は基準連結事業年度等 | P32: 国内雇用者に対する 給与等の支給額 | AA32: 適用年度の月数 | AJ32: 基準雇用者給与等支給額
Z33: (23)の基準事業年度又は 基準連結事業年度等の月数 | AJ33: (24)×(25)
E34: 23 | R34: 24 | AB34: 25 | AL34: 26
C35: 平 | E35: =基本情報!C17 -> 2012-10-01 | Y35: 円 | AC35: =基本情報!I11 -> 12 | AS35: 円
C36: 平 | E36: =基本情報!C18 -> 2013-09-30 | P36: =IF(E35="-",基本情報!D21,給与入力!AG21) -> 12017550 | AC36: =IF(E35="-",基本情報!G20,基本情報!I18) -> 12 | AJ36: =ROUNDDOWN(P36*AC35/AC36,0) -> 12017550
H37: 比較雇用者給与等支給額の計算
C38: 前事業年度又は前連結事業年度 | P38: 国内雇用者に対する 給与等の支給額 | AA38: 適用年度の月数 | AJ38: 比較雇用者給与等支給額
Z39: (27)の前事業年度又は 前連結事業年度の月数 | AJ39: (21)×(22)
E40: 27 | R40: 28 | AB40: 29 | AL40: 30
C41: 平 | E41: =基本情報!G11 -> 2016-10-01 | Y41: 円 | AC41: =基本情報!I11 -> 12 | AS41: 円
C42: 平 | E42: =基本情報!H11 -> 2017-09-30 | P42: =IF(E41="-",0,給与入力!AG49) -> 10836600 | AC42: =基本情報!J11 -> 12 | AJ42: =IF(E41="-",0,ROUNDDOWN(P42*AC41/AC42,0)) -> 10836600
H43: 平均給与等支給額及び比較平均給与等支給額の計算
Q44: 平均給与等支給額の計算 | AF44: 比較平均給与等支給額の計算
Q45: 適 用 年 度 | AF45: 前事業年度又は前連結事業年度
W46: ① | AK46: ②
C47: 雇用者給与等支給額 | Q47: 31 | R47: (1) | AE47: 円 | AF47: (28) | AS47: 円
T48: =給与入力!AG78 -> 13386900 | AH48: =給与入力!AG49 -> 10836600
C49: 同上のうち一般被保険者である 継続雇用者に係る金額 | Q49: 32
T50: =給与入力!AG79 -> 10914600 | AH50: =給与入力!AG50 -> 8726100
C51: 同上のうち継続雇用制度 対象者に係る金額 | Q51: 33
T52: =給与入力!AG80 -> 457000 | AH52: =給与入力!AG51 -> 0
C53: 継続雇用者給与等支給額 | Q53: 34
E54: (32)－(33) | T54: =IF(E41="-",1,T50-T52) -> 10457600 | AH54: =IF(E41="-",0,AH50-AH52) -> 8726100
C55: 月別支給対象者の合計数 | Q55: 35 | AE55: 人 | AS55: 人
T56: =IF(E41="-",1,給与入力!AH78) -> 32 | AH56: =IF(E41="-",1,給与入力!AH49) -> 40
C57: 平均給与等支給額及び比較平均給与等支給額 | Q57: 36 | AE57: 円 | AS57: 円
E58: (34)/(35) | T58: =IF(ISERROR(ROUNDDOWN(T54/T56,0)),0,ROUNDDOWN(T54/T56,0)) -> 326800 | AH58: =IF(ISERROR(ROUNDDOWN(AH54/AH56,0)),0,ROUNDDOWN(AH54/AH56,0)) -> 218152
AS59: 法 0301-0623

Sheet 別表６（２３）Ｈ３０
B5: 雇用者給与等支給額が増加した場合又は給与等 の引き上げ及び設備投資を行った場合の法人税額 の特別控除に関する明細書 | K5: 事 業 | M5: ='別表６（２３）'!AB2:AB2 -> 2017-10-01 | S5: 法人名 | U5: ='別表６（２３）'!AK2:AK2 -> 株式会社今野デザイン | Z5: 別表六
K6: 年 度 | M6: ='別表６（２３）'!AB3:AB3 -> 2018-09-30
B7: 雇用者給与等支給額 | H7: 1 | I7: ='別表６（２３）'!Q5:Q5 -> 13386900 | K7: 円 | L7: 法人税額の特別控除額の計算 | M7: 調整前法人税額 | V7: 21 | W7: ='別表６（２３）'!AL21:AL21 -> 2000000 | Y7: 円 | Z7: ( | AA7: 二十三 | AB7: )
M8: (別表一(一)｢2｣､別表一(二)｢2｣又は別表一(三)｢2｣又は別表一の三｢2｣若しくは｢13｣)
B9: 基準雇用者給与等支給額 | H9: 2 | I9: ='別表６（２３）'!Q7:Q7 -> 12017550 | N9: 雇用者給与等支給増加重複控除額 | V9: 22 | W9: ='別表６（２３）'!Q27:Q27 -> 0 | Z9: 平三十・四・一以後終了事業年度分
B10: (別表六(二十三)付表一｢4｣) | M10: 平成 | N10: （別表六(二十三)付表二｢7｣）
B11: 調整前雇用者給与等支給増加額 | H11: 3 | I11: ='別表６（２３）'!Q9:Q9 -> 1369350 | N11: 雇用者給与等支給増加額 | V11: 23 | W11: ='別表６（２３）'!Q30:Q30 -> 1369350
B12: (1)－(2) | M12: 30 | N12: (3)－(22)
B13: (マイナスの場合は０) | N13: (マイナスの場合は０)
B14: 増加促進割合 | H14: 4 | I14: ='別表６（２３）'!Q12:Q12 -> 0.113 | M14: 年 | N14: 税額控除限度額 | V14: 24 | W14: ='別表６（２３）'!AL5:AL5 -> 136935 | Y14: 円 | AD14: =IF(AND(#REF!=2,I14>=0.03),INT(W11*10/100),IF(I14>=0.05,INT(W11*10/100),0)) -> 
Q15: (23) | R15: × | S15: 10
E16: (3) | M16: 4 | S16: 100
E17: (2) | N17: ((6)≦(7)の場合は０)
B18: 比較雇用者給与等支給額 | H18: 5 | I18: ='別表６（２３）'!Q15:Q15 -> 10836600 | K18: 円 | M18: 月 | N18: 税額控除加算基準額 | V18: 25 | W18: =MIN(I7-I18,W11) -> 1369350
N19: (((1)－(5))と(23)のうち少ない金額)
B20: (別表六(二十三)付表一｢8｣) | M20: 1
B21: 平均給与等支給額 | H21: 6 | I21: ='別表６（２３）'!Q19:Q19 -> 326800 | M21: 日前に開始した事業年度の場合 | N21: 中小企業者等 | O21: 以外の法人 | P21: 税額控除加算額 | V21: 26 | W21: ='別表６（２３）'!AL9:AL9 -> 
B22: (別表六(二十三)付表一｢14の①｣) | R22: (25) | S22: × | T22: 2
T23: 100
B24: 比較平均給与等支給額 | H24: 7 | I24: ='別表６（２３）'!Q21:Q21 -> 218152 | P24: 税額控除限度額 | V24: 27 | W24: ='別表６（２３）'!AL12:AL12 ->  | AD24: =IF(OR(I32<0.02,I24=0),0,W14+W21) -> 
P25: (24)＋(26)
B26: (別表六(二十三)付表一｢14の②｣) | P26: ((1)＜(5)の場合又は(9)＜0.02 若しくは(7)＝０の場合は０)
B28: 平均給与等支給増加額 | H28: 8 | I28: =IF(I21-I24>0,I21-I24,0) -> 108648 | N28: 中小企業者等 | P28: 税額控除加算額 | V28: 28 | W28: ='別表６（２３）'!AL15:AL15 -> 164322
B29: (6)－(7) | R29: (25) | S29: × | T29: 12
T30: 100
B31: (マイナスの場合は０) | P31: ((9)＜0.02又は(7)＝０の場合は０)
B32: 平均給与等支給増加割合 | H32: 9 | I32: ='別表６（２３）'!Q26:Q26 -> 0.498 | P32: 税額控除限度額 | V32: 29 | W32: ='別表６（２３）'!AL19:AL19 -> 301257
E33: (8) | P33: (24)＋(28)
E34: (7) | P34: ((1)＜(5)の場合は０)
B35: 継続雇用者給与等支給増加割合の計算 | C35: 継続雇用者給与等支給額 | H35: 10 | K35: 円 | N35: 当期税額基準額 | V35: 30 | W35: ='別表６（２３）'!AL23:AL23 -> 400000
C36: (別表六(二十三)付表一｢19の①｣) | Q36: (21) | R36: × | S36: ='別表６（２３）'!AE23:AE23 -> 20
S37: 100
C38: 継続雇用者比較給与等支給額 | H38: 11 | N38: 当期税額控除可能額 | V38: 31 | W38: ='別表６（２３）'!AL26:AL26 -> 301257
C39: (別表六(二十三)付表一｢19の②｣又は｢19の③｣) | N39: (((27)又は(29))と(30)のうち少ない金額)
C40: 継続雇用者給与等支給増加額 | H40: 12 | I40: =IF(I35-I38>0,I35-I38,0) -> 0 | M40: 平成 | N40: 雇用者給与等支給増加重複控除額 | V40: 32
C41: (10)－(11) | N41: （別表六(二十三)付表二｢17｣）
C42: (マイナスの場合は０) | M42: 30
C43: 継続雇用者給与等支給増加割合 | H43: 13 | I43: =IF(I38>0,ROUNDDOWN(I40/I38,4),"") ->  | M43: 年 | N43: 雇用者給与等支給増加額 | V43: 33
E44: (12) | M44: 4 | N44: (1)－(5)－(32)
E45: (11) | M45: 月
C46: ((11)＝０の場合は０) | M46: 1 | N46: (マイナスの場合は０)
B47: 国内設備投資に係る計算 | C47: 国内設備投資額 | H47: 14 | M47: 日以後に開始する事業年度の場合 | N47: 税額控除限度額 | P47: (20)≧20％又は(17)＝(19)＞0の場合 | V47: 34
R48: (33) | S48: × | T48: 20
T49: 100
P50: ((13)＜0.03又は(14)＜(16)の場合は０)
C51: 当期償却費総額 | H51: 15 | P51: 同上以外の場合 | V51: 35
R52: (33) | S52: × | T52: 15
C53: (別表六(二十三)付表一｢22｣) | T53: 100
P54: ((13)＜0.03又は(14)＜(16)の場合は０)
C55: 当期償却費総額の90％相当額 | H55: 16 | N55: 当期税額基準額 | V55: 36
D56: (15)× | F56: 90 | Q56: (21) | R56: × | S56: 20
F57: 100 | S57: 100
B58: 教育訓練費増加割合の計算 | C58: 教育訓練費の額 | H58: 17 | N58: 当期税額控除可能額 | V58: 37
N59: (((34)又は(35))と(36)のうち少な い金額)
C60: 比較教育訓練費の額 | H60: 18 | M60: 当期税額控除可能額 | V60: 38 | W60: =W38 -> 301257
C61: (別表六(二十三)付表一｢27｣) | M61: (31)又は(37)
C62: 教育訓練費増加額 | H62: 19 | I62: =IF(I58-I60>0,I58-I60,0) -> 0 | M62: 調整前法人税額超過構成額 | V62: 39 | W62: ='別表６（２３）'!AL27:AL27 -> 0
C63: (17)－(18) | M63: （別表六(二十八)｢7の㉒｣）
C64: (マイナスの場合は０)
C65: 教育訓練費増加割合 | H65: 20 | I65: =IF(I60>0,ROUNDDOWN(I62/I60,4),"") ->  | M65: 法人税額の特別控除額 | V65: 40 | W65: ='別表６（２３）'!AL30:AL30 -> 301257
E66: (19)
E67: (18) | M67: (38)－(39)
C68: ((18)＝０の場合は０)
Y69: 法 0301-0623

Sheet 別表６（２３）付表１Ｈ３０
B5: 給与等支給額、当期償却費総額及び比較教育訓練 費の額の計算に関する明細書 | P5: 事 業 | R5: ='別表６（２３）'!AB2:AB2 -> 2017-10-01 | X5: 法人名 | Z5: ='別表６（２３）'!AK2:AK2 -> 株式会社今野デザイン | AI5: 別表六
P6: 年 度 | R6: ='別表６（２３）'!AB3:AB3 -> 2018-09-30
F7: 給与等支給額の計算に関する明細 | AI7: ( | AJ7: 二十三 | AK7: )
B8: 基準雇用者給与等支給額の計算 | C8: 基準事業年度又は 基準連結事業年度等 | I8: 1 | J8: 平 | K8: ='別表６（２３）'!E35:E35 -> 2012-10-01 | Q8: 比較雇用者給与等支給額の計算 | R8: 前事業年度又は前連結事業年度 | AA8: 5 | AB8: 平 | AC8: ='別表６（２３）'!E41:E41 -> 2016-10-01
J9: 平 | K9: ='別表６（２３）'!E36:E36 -> 2013-09-30 | AB9: 平 | AC9: ='別表６（２３）'!E42:E42 -> 2017-09-30 | AI9: 付表一
C10: 国内雇用者に対する 給与等の支給額 | I10: 2 | J10: ='別表６（２３）'!P36:P36 -> 12017550 | P10: 円 | R10: 国内雇用者に対する 給与等の支給額 | AA10: 6 | AH10: 円
AB11: ='別表６（２３）'!P42:P42 -> 10836600 | AI11: 平三十・四・一以後終了事業年度分
C12: 適用年度の月数 | I12: 3 | L12: ='別表６（２３）'!AC35:AC35 -> 12 | R12: 適用年度の月数 | AA12: 7 | AD12: ='別表６（２３）'!AC41:AC41 -> 12
C13: (1)の基準事業年度又は 基準連結事業年度等の月数 | R13: (5)の前事業年度又は 前連結事業年度の月数
L14: ='別表６（２３）'!AC36:AC36 -> 12 | AD14: ='別表６（２３）'!AC42:AC42 -> 12
C15: 基準雇用者給与等支給額 | I15: 4 | J15: ='別表６（２３）'!AJ36:AJ36 -> 12017550 | P15: 円 | R15: 比較雇用者給与等支給額 | AA15: 8 | AB15: ='別表６（２３）'!AJ42:AJ42 -> 10836600 | AH15: 円
C16: (2)×(3) | R16: (6)×(7)
F17: 平均給与等支給額及び比較平均給与等支給額の計算
K18: 平均給与等支給額の計算 | W18: 比較平均給与等支給額の計算
K19: 適 用 年 度 | W19: 前事業年度又は前連結事業年度
K20: ① | W20: ②
B21: 雇用者給与等支給額 | J21: 9 | K21: 別表六(二十三)｢1｣ | V21: 円 | W21: (6) | AH21: 円
K22: ='別表６（２３）'!T48:T48 -> 13386900 | Y22: ='別表６（２３）'!AH48:AH48 -> 10836600
B23: 同上のうち一般被保険者である旧 措法第42条の12の５第２項第８号に 規定する継続雇用者に係る金額 | J23: 10 | K23: ='別表６（２３）'!T50:T50 -> 10914600 | Y23: ='別表６（２３）'!AH50:AH50 -> 8726100
B25: 同上のうち継続雇用制度対象者に係る金額 | J25: 11 | K25: ='別表６（２３）'!T52:T52 -> 457000 | Y25: ='別表６（２３）'!AH52:AH52 -> 0
B27: 継続雇用者に対する給与等の支給額 | J27: 12 | K27: ='別表６（２３）'!T54:T54 -> 10457600 | Y27: ='別表６（２３）'!AH54:AH54 -> 8726100
B28: (10)－(11)
B29: 月別支給対象者の合計数 | J29: 13 | K29: ='別表６（２３）'!T56:T56 -> 32 | V29: 人 | Y29: ='別表６（２３）'!AH56:AH56 -> 40 | AH29: 人
B31: 平均給与等支給額及び比較平均給与等支給額 | J31: 14 | K31: ='別表６（２３）'!T58:T58 -> 326800 | V31: 円 | Y31: ='別表６（２３）'!AH58:AH58 -> 218152 | AH31: 円
F32: (12)
F33: (13)
F34: 継続雇用者給与等支給額及び継続雇用者比較給与等支給額の計算
K35: 継続雇用者給与等支給額の計算 | S35: 継続雇用者比較給与等支給額の計算
K36: 適 用 年 度 | S36: 前 事 業 年 度 等 | AA36: 前一年事業年度等特定期間
K37: ① | S37: ② | AA37: ③
B38: 事業年度等又は連結事業年度等 | J38: 15
B40: 雇用者給与等支給額 | J40: 16 | K40: 別表六(二十三)｢1｣ | R40: 円 | S40: (6) | Z40: 円 | AH40: 円
S41: =AB10 -> 0
B42: 同上のうち継続雇用者に係る金額 | J42: 17
B44: 適用年度の月数 | J44: 18
B45: (15の③)の月数
B46: 継続雇用者給与等支給額及び | J46: 19 | R46: 円 | Z46: 円 | AH46: 円
B47: 継続雇用者比較給与等支給額
B48: (17)又は((17)×(18))
F49: 当期償却費総額の計算に関する明細
B50: 損益計算書に計上された減価償却費の額 | I50: 20 | Q50: 円 | Z50: 22 | AA50: =J50+J52 -> 0 | AH50: 円
R51: 当期償却費総額
B52: 剰余金の処分の方法により特別償却準備金と | I52: 21 | R52: (20)＋(21)
B53: して積み立てた金額その他上記以外の金額
F54: 比較教育訓練費の額の計算に関する明細
B55: 事業年度又は連結事業年度 | J55: 教育訓練費の額 | S55: 適用年度の月数 | AA55: 改定教育訓練費の額
S56: (23)の前事業年度又は 連結事業年度の月数
AA57: (24)×(25)
B58: 23 | J58: 24 | S58: 25 | AA58: 26
B59: 調整対象年度 | R59: 円 | AA59: =IF(V60>0,INT(J59*V59/V60),0) -> 0 | AH59: 円
AA61: =IF(V62>0,INT(J61*V61/V62),0) -> 0
AA63: =IF(V64>0,INT(J63*V63/V64),0) -> 0
AA65: =IF(V66>0,INT(J65*V65/V66),0) -> 0
AM66: 事業年度の数
B67: 計 | AA67: =SUM(AA59:AG66) -> 0 | AM67: =COUNTIF(J59:Q66,">0") -> 0
B68: 比較教育訓練費の額 | Z68: 27 | AA68: =IF(AA67>0,INT(AA67/AM67),0) -> 0
B69: (26の計)÷(調整対象年度数)
AH70: 法 0301-0623-付1

Sheet 計算基礎シート (hidden)
F3: 在職中 | G3: =G28 -> 2018-09-30 | H3: なくなった月 | J3: なった月
B4: 前年度 | E4: 適用年度 | F4: =F5&"前退職" -> 2016年10月前退職 | G4: =G5-1 -> 2016-09-30 | H4: 1
A5: 1 | B5: =基本情報!G11 -> 2016-10-01 | C5: =YEAR(B5)&"年"&MONTH(B5)&"月以前" -> 2016年10月以前 | D5: =B5 -> 2016-10-01 | E5: =D5 -> 2016-10-01 | F5: =YEAR(E5)&"年"&MONTH(E5)&"月" -> 2016年10月 | G5: =E5 -> 2016-10-01 | H5: 2 | I5: =C5 -> 2016年10月以前 | J5: 1 | L5: 退職
A6: 2 | B6: =EOMONTH(B5,1) -> 2016-11-30 | C6: =YEAR(B6)&"年"&MONTH(B6)&"月" -> 2016年11月 | D6: =B6 -> 2016-11-30 | E6: =EOMONTH(E5,1) -> 2016-11-30 | F6: =YEAR(E6)&"年"&MONTH(E6)&"月" -> 2016年11月 | G6: =E6 -> 2016-11-30 | H6: 2 | I6: =C6 -> 2016年11月 | J6: 1 | L6: 継続雇用制度に移行
A7: 3 | B7: =EOMONTH(B6,1) -> 2016-12-31 | C7: =YEAR(B7)&"年"&MONTH(B7)&"月" -> 2016年12月 | D7: 2016-12-31 | E7: =EOMONTH(E6,1) -> 2016-12-31 | F7: 2016年12月 | G7: 2016-12-31 | H7: 2 | I7: 2016年12月 | J7: 1
A8: 4 | B8: 2017-01-31 | C8: 2017年1月 | D8: 2017-01-31 | E8: 2017-01-31 | F8: 2017年1月 | G8: 2017-01-31 | H8: 2 | I8: 2017年1月 | J8: 1
A9: 5 | B9: 2017-02-28 | C9: 2017年2月 | D9: 2017-02-28 | E9: 2017-02-28 | F9: 2017年2月 | G9: 2017-02-28 | H9: 2 | I9: 2017年2月 | J9: 1
A10: 6 | B10: 2017-03-31 | C10: 2017年3月 | D10: 2017-03-31 | E10: 2017-03-31 | F10: 2017年3月 | G10: 2017-03-31 | H10: 2 | I10: 2017年3月 | J10: 1
A11: 7 | B11: 2017-04-30 | C11: 2017年4月 | D11: 2017-04-30 | E11: 2017-04-30 | F11: 2017年4月 | G11: 2017-04-30 | H11: 2 | I11: 2017年4月 | J11: 1
A12: 8 | B12: 2017-05-31 | C12: 2017年5月 | D12: 2017-05-31 | E12: 2017-05-31 | F12: 2017年5月 | G12: 2017-05-31 | H12: 2 | I12: 2017年5月 | J12: 1
A13: 9 | B13: 2017-06-30 | C13: 2017年6月 | D13: 2017-06-30 | E13: 2017-06-30 | F13: 2017年6月 | G13: 2017-06-30 | H13: 2 | I13: 2017年6月 | J13: 1
A14: 10 | B14: 2017-07-31 | C14: 2017年7月 | D14: 2017-07-31 | E14: 2017-07-31 | F14: 2017年7月 | G14: 2017-07-31 | H14: 2 | I14: 2017年7月 | J14: 1
A15: 11 | B15: 2017-08-31 | C15: 2017年8月 | D15: 2017-08-31 | E15: 2017-08-31 | F15: 2017年8月 | G15: 2017-08-31 | H15: 2 | I15: 2017年8月 | J15: 1
A16: 12 | B16: 2017-09-30 | C16: 2017年9月 | D16: 2017-09-30 | E16: 2017-09-30 | F16: 2017年9月 | G16: 2017-09-30 | H16: 2 | I16: 2017年9月 | J16: 1
A17: 13 | B17: 2017-10-31 | C17: 2017年10月 | D17: 2017-10-31 | E17: 2017-10-31 | F17: 2017年10月 | G17: 2017-10-31 | H17: 1 | I17: 2017年10月 | J17: 2
A18: 14 | B18: 2017-11-30 | C18: 2017年11月 | D18: 2017-11-30 | E18: 2017-11-30 | F18: 2017年11月 | G18: 2017-11-30 | H18: 1 | I18: 2017年11月 | J18: 2
A19: 15 | B19: 2017-12-31 | C19: 2017年12月 | D19: 2017-12-31 | E19: 2017-12-31 | F19: 2017年12月 | G19: 2017-12-31 | H19: 1 | I19: 2017年12月 | J19: 2
A20: 16 | B20: 2018-01-31 | C20: 2018年1月 | D20: 2018-01-31 | E20: 2018-01-31 | F20: 2018年1月 | G20: 2018-01-31 | H20: 1 | I20: 2018年1月 | J20: 2
A21: 17 | B21: 2018-02-28 | C21: 2018年2月 | D21: 2018-02-28 | E21: 2018-02-28 | F21: 2018年2月 | G21: 2018-02-28 | H21: 1 | I21: 2018年2月 | J21: 2
A22: 18 | B22: 2018-03-31 | C22: 2018年3月 | D22: 2018-03-31 | E22: 2018-03-31 | F22: 2018年3月 | G22: 2018-03-31 | H22: 1 | I22: 2018年3月 | J22: 2
A23: 19 | B23: 2018-04-30 | C23: 2018年4月 | D23: 2018-04-30 | E23: 2018-04-30 | F23: 2018年4月 | G23: 2018-04-30 | H23: 1 | I23: 2018年4月 | J23: 2
A24: 20 | B24: 2018-05-31 | C24: 2018年5月 | D24: 2018-05-31 | E24: 2018-05-31 | F24: 2018年5月 | G24: 2018-05-31 | H24: 1 | I24: 2018年5月 | J24: 2
A25: 21 | B25: 2018-06-30 | C25: 2018年6月 | D25: 2018-06-30 | E25: 2018-06-30 | F25: 2018年6月 | G25: 2018-06-30 | H25: 1 | I25: 2018年6月 | J25: 2
A26: 22 | B26: 2018-07-31 | C26: 2018年7月 | D26: 2018-07-31 | E26: 2018-07-31 | F26: 2018年7月 | G26: 2018-07-31 | H26: 1 | I26: 2018年7月 | J26: 2
A27: 23 | B27: 2018-08-31 | C27: 2018年8月 | D27: 2018-08-31 | E27: 2018-08-31 | F27: 2018年8月 | G27: 2018-08-31 | H27: 1 | I27: 2018年8月 | J27: 2
A28: 24 | B28: 2018-09-30 | C28: 2018年9月 | D28: 2018-09-30 | E28: 2018-09-30 | F28: 2018年9月 | G28: 2018-09-30 | H28: 1 | I28: 2018年9月 | J28: 2
